Workbook

Sheet HOME
C6: SUMBER ENERGI APA YANG ANDA GUNAKAN ?
H10: Attention/Perhatian:
H11: mohon enable macros anda
H12: zoom level pada 86%

Sheet UI Tenaga Listrik (hidden)
C5: Sumber Energi | E5: Tenaga Listrik
C7: Lokasi Industri/Grid Pembangkit | E7: Lambuya - Sulawesi Tenggara
C9: Faktor Emisi CO2 (Listrik) | E9: =IFERROR(VLOOKUP(E7,'FE Listrik'!A4:B111,2,FALSE),"0") -> 0,56 | G9: kg GRK/kWh
C11: Faktor Emisi CH4 (Listrik) | E11: 0 | G11: kg GRK/kWh
C13: Faktor Emisi N2O (Listrik) | E13: 0 | G13: kg GRK/kWh
C15: Konsumsi Energi Listrik (per bulan) | G15: kWh
C22: Nilai Emisi Gas Rumah Kaca (per bulan)
C24: Emisi Karbon Dioksida (CO2) | G24: kg CO2
G25: kg CO2e
C27: Emisi Metana (CH4) | G27: kg CH4
G28: kg CO2e
C30: Emisi Nitrous Oxide (N2O) | G30: kg N2O
G31: kg CO2e
C33: Total Emisi CO2 ekivalen | G33: kg CO2e

Sheet UI Bahan Bakar (hidden)
C5: Sumber Energi | E5: Bahan Bakar Fossil
C7: Tipe Equipment | E7: Tak Bergerak
C9: Jenis Sumber Energi Bergerak
C11: Jenis Sumber Energi Tak Bergerak
C13: Faktor Emisi CO2 (Bergerak) | E13: =IFERROR(VLOOKUP(E9,'FE BB Gerak'!A3:B20,2,FALSE),"0") -> 0 | G13: kg GRK/TJ
C15: Faktor Emisi CH4 (Bergerak) | E15: =IFERROR(VLOOKUP(E9,'FE BB Gerak'!A3:C20,3,FALSE),"0") -> 0 | G15: kg GRK/TJ
C17: Faktor Emisi N2O (Bergerak) | E17: =IFERROR(VLOOKUP(E9,'FE BB Gerak'!A3:D20,4,FALSE),"0") -> 0 | G17: kg GRK/TJ
C19: Faktor Emisi CO2 (Tak Bergerak) | E19: =IFERROR(VLOOKUP(E11,'FE BB Stasioner'!A3:B48,2,FALSE),"0") -> 0 | G19: kg GRK/TJ
C21: Faktor Emisi CH4 (Tak Bergerak) | E21: =IFERROR(VLOOKUP(E11,'FE BB Stasioner'!A3:C48,3,FALSE),"0") -> 0 | G21: kg GRK/TJ
C23: Faktor Emisi N2O (Tak Bergerak) | E23: =IFERROR(VLOOKUP(E11,'FE BB Stasioner'!A3:D48,4,FALSE),"0") -> 0 | G23: kg GRK/TJ
C25: Nilai Kalor (Nett Calorific Value) | E25: =IFERROR(IF(E7="Bergerak",VLOOKUP(E9,'Nilai Kalor_NCV kg'!A2:B52,2,FALSE),VLOOKUP('UI Bahan Bakar'!E11,'Nilai Kalor_NCV kg'!A2:B52,2,FALSE)),"0") -> 0 | G25: TJ/kg
C27: Satuan Konsumsi Energi (per bulan) | E27: liter
C29: Konsumsi Energi (per bulan) | G29: kg
C31: Massa jenis sumber energi | E31: =IFERROR(IF(E7="Bergerak",VLOOKUP(E9,Density!A2:C47,2,FALSE),VLOOKUP('UI Bahan Bakar'!E11,Density!A2:C47,2,FALSE))/1000,"0") -> 0 | G31: kg/liter
C33: Konsumsi Energi (per bulan) | G33: liter
C35: Konsumsi Energi (per bulan) (auto) | E35: =E33*E31 -> 0 | G35: kg
C37: Konsumsi Energi (per bulan) (auto) | E37: =IFERROR(IF(E27="kilogram",E29*E25,E35*E25),"0") -> 0 | G37: TJ
C44: Nilai Emisi Gas Rumah Kaca (per bulan)
C46: Emisi Karbon Dioksida (CO2) | G46: kg CO2
G47: kg CO2e
C49: Emisi Metana (CH4) | G49: kg CH4
G50: kg CO2e
C52: Emisi Nitrous Oxide (N2O) | G52: kg N2O
G53: kg CO2e
C55: Total Emisi CO2 ekivalen | G55: kg CO2e

Sheet UI Biomassa (hidden)
C5: Sumber Energi | E5: Biomassa
C7: Tipe Equipment | E7: Tak Bergerak
C9: Jenis Biomassa
C11: Faktor Emisi CO2 (Tak Bergerak) | E11: =IFERROR(VLOOKUP($E$9,'FE BB Stasioner'!$A$49:$B$53,2,FALSE),"0") -> 0 | G11: kg GRK/TJ
C13: Faktor Emisi CH4 (Tak Bergerak) | E13: =IFERROR(VLOOKUP($E$9,'FE BB Stasioner'!$A$49:$C$53,3,FALSE),"0") -> 0 | G13: kg GRK/TJ
C15: Faktor Emisi N2O (Tak Bergerak) | E15: =IFERROR(VLOOKUP(E9,'FE BB Stasioner'!A49:D53,4,FALSE),"0") -> 0 | G15: kg GRK/TJ
C17: Nilai Kalor (Nett Calorific Value) | E17: =IFERROR(VLOOKUP($E$9,'Nilai Kalor_NCV kg'!A$48:B$52,2,FALSE),"0") -> 0 | G17: TJ/kg
C19: Satuan Konsumsi Energi (per bulan) | E19: kilogram
C21: Konsumsi Energi (per bulan) | G21: liter
C23: Massa jenis sumber energi | E23: =IFERROR((VLOOKUP(E9,Density!A50:C54,2,FALSE)/1000),"0") -> 0 | G23: kg/liter
C25: Konsumsi Energi (per bulan) (auto) | E25: =E23*E21 -> 0 | G25: kg
C27: Konsumsi Energi (per bulan) | G27: kg
C29: Konsumsi Energi (per bulan) (auto) | E29: =E25*E17 -> 0 | G29: TJ
C31: Konsumsi Energi (per bulan) (auto) | E31: =E27*E17 -> 0 | G31: TJ
C38: Nilai Emisi Gas Rumah Kaca (per bulan)
C40: Emisi Karbon Dioksida (CO2) | G40: kg CO2
G41: kg CO2e
C43: Emisi Metana (CH4) | G43: kg CH4
G44: kg CO2e
C46: Emisi Nitrous Oxide (N2O) | G46: kg N2O
G47: kg CO2e
C49: Total Emisi CO2 ekivalen | G49: kg CO2e

Sheet Status Emisi (hidden)
C5: Jenis Industri
C7: =IF(E5="Gula Kristal Putih","Bahan Baku Tebu yang Digunakan","Produk yang Dihasilkan per Bulan") -> Produk yang Dihasilkan per Bulan | G7: =IFERROR(VLOOKUP(E5,SIH!$A$2:$F$50,6,FALSE)," ton") -> ton
C9: Emisi yang Dihasilkan per Bulan dari Produksi | G9: kg CO2e
C11: Batas Emisi CO2e Industri (kg CO2e / sat. produk) | E11: =IFERROR(VLOOKUP(E5,SIH!$A$2:$D$50,4,FALSE),"0") -> 0 | G11: =CONCATENATE(" kg CO2e /",G7) -> kg CO2e / ton
C13: Peraturan Acuan Batas Emisi | E13: =IFERROR(VLOOKUP(E5,SIH!$A$2:$E$50,5,FALSE),"") -> 
C21: Emisi CO2e Industri (kg CO2e / sat. produk) | G21: =CONCATENATE(" kg CO2e /",G7) -> kg CO2e / ton
C23: Kategori Emisi
C25: =IFERROR(IF(E21>E11,"Kurangi Emisi CO2e Anda Sebesar","Rasio Emisi Anda di Bawah Batasan Sebesar")," ") -> Rasio Emisi Anda di Bawah Batasan Sebesar | G25: =CONCATENATE(" kg CO2e /",G7) -> kg CO2e / ton
B60: -1

Sheet Referensi (hidden)
C3: ACUAN DAN REFERENSI
C5: PERTIMBANGAN PENENTUAN PEMILIHAN PENDEKATAN TIER 1 | P5: RUMUS YANG DIGUNAKAN DALAM PERHITUNGAN
C6: SOURCE : 2006 IPCC GUIDELINES FOR NATIONAL GREENHOUSE GAS INVENTORIES, PEDOMAN INVENTARISASI GRK KLHK 2012 | P6: SOURCE : 2006 IPCC GUIDELINES FOR NATIONAL GREENHOUSE GAS INVENTORIES, PEDOMAN INVENTARISASI GRK KLHK 2012
P44: ACUAN KONVERSI CO2 EKIVALEN
P45: SOURCE : GHG PROTOCOL 2016 FIFTH ASSESMENT REPORT (AR5)
P70: DATABASE YANG DIGUNAKAN
P71: SOURCE : 2006 IPCC GUIDELINES FOR NATIONAL GREENHOUSE GAS INVENTORIES, PEDOMAN INVENTARISASI GRK KLHK 2012
Q72: DIREKTORAT JENDERAL KETENAGALISTRIKAN KEMENTERIAN ENERGI DAN SUMBER DAYA MINERAL
P73: WEB : | Q73: https://www.ipcc-nggip.iges.or.jp/EFDB/main.php
Q74: https://gatrik.esdm.go.id/

Sheet SIH (hidden)
A1: SIH | B1: Sat | C1: Bahan / Metode Produksi | D1: Maksimum / ton Produk | E1: No Permenperin | F1: Satuan | G1: Ket. | K1: =COUNTIF($L:$L,"?*") -> 49
A2: Tas, Kantong Plastik, Bioplastik bahan Polimer | B2: kg CO2/ton | C2: Polimer | D2: 440 | E2: PERMENPERIN NO. 55 TAHUN 2020 | F2: ton | I2: =IF(ISNUMBER(SEARCH('Status Emisi'!$E$5,SIH!J2)),MAX($I$1:I1)+1,0) -> 1 | J2: Tas, Kantong Plastik, Bioplastik bahan Polimer | K2: =OFFSET($L$2,0,0,COUNTIF(L:L,"?*"),1) -> Tas, Kantong Plastik, Bioplastik bahan Polimer | L2: =IFERROR(VLOOKUP(ROWS($L$1:L1),$I$2:$J$50,2,FALSE),"") -> Tas, Kantong Plastik, Bioplastik bahan Polimer
A3: Tas, Kantong Plastik, Bioplastik bahan Daur Ulang | B3: kg CO2/ton | C3: Daur Ulang | D3: 560 | E3: PERMENPERIN NO. 55 TAHUN 2020 | F3: ton | I3: =IF(ISNUMBER(SEARCH('Status Emisi'!$E$5,SIH!J3)),MAX($I$1:I2)+1,0) -> 2 | J3: Tas, Kantong Plastik, Bioplastik bahan Daur Ulang | L3: =IFERROR(VLOOKUP(ROWS($L$1:L2),$I$2:$J$50,2,FALSE),"") -> Tas, Kantong Plastik, Bioplastik bahan Daur Ulang
A4: Tas, Kantong Plastik, Bioplastik bahan Biopolimer | B4: kg CO2/ton | C4: Biopolimer | D4: 560 | E4: PERMENPERIN NO. 55 TAHUN 2020 | F4: ton | I4: =IF(ISNUMBER(SEARCH('Status Emisi'!$E$5,SIH!J4)),MAX($I$1:I3)+1,0) -> 3 | J4: Tas, Kantong Plastik, Bioplastik bahan Biopolimer | L4: =IFERROR(VLOOKUP(ROWS($L$1:L3),$I$2:$J$50,2,FALSE),"") -> Tas, Kantong Plastik, Bioplastik bahan Biopolimer
A5: Pupuk Nitrogen, Phospor, Kalium Padat (Fusion Granulation) | B5: kg CO2/ton | C5: Fusion Granulation | D5: 117 | E5: PERMENPERIN NO. 50 TAHUN 2020 | F5: ton | I5: =IF(ISNUMBER(SEARCH('Status Emisi'!$E$5,SIH!J5)),MAX($I$1:I4)+1,0) -> 4 | J5: Pupuk Nitrogen, Phospor, Kalium Padat (Fusion Granulation) | L5: =IFERROR(VLOOKUP(ROWS($L$1:L4),$I$2:$J$50,2,FALSE),"") -> Pupuk Nitrogen, Phospor, Kalium Padat (Fusion Granulation)
A6: Pupuk Nitrogen, Phospor, Kalium Padat (Chemical Granulation) | C6: Chemical Granulation | D6: 80 | E6: PERMENPERIN NO. 50 TAHUN 2020 | F6: ton | I6: =IF(ISNUMBER(SEARCH('Status Emisi'!$E$5,SIH!J6)),MAX($I$1:I5)+1,0) -> 5 | J6: Pupuk Nitrogen, Phospor, Kalium Padat (Chemical Granulation) | L6: =IFERROR(VLOOKUP(ROWS($L$1:L5),$I$2:$J$50,2,FALSE),"") -> Pupuk Nitrogen, Phospor, Kalium Padat (Chemical Granulation)
A7: Karet Remah (Crumb Rubber) | B7: kg CO2/ton | C7: - | D7: 200 | E7: PERMENPERIN NO. 9 TAHUN 2019 | F7: ton | I7: =IF(ISNUMBER(SEARCH('Status Emisi'!$E$5,SIH!J7)),MAX($I$1:I6)+1,0) -> 6 | J7: Karet Remah (Crumb Rubber) | L7: =IFERROR(VLOOKUP(ROWS($L$1:L6),$I$2:$J$50,2,FALSE),"") -> Karet Remah (Crumb Rubber)
A8: Penyamakan Kulit Sapi, Kerbau Domba Kambing | B8: kg CO2/ton | D8: 0.9 | E8: PERMENPERIN NO. 37 TAHUN 2019 | F8: ft2 | I8: =IF(ISNUMBER(SEARCH('Status Emisi'!$E$5,SIH!J8)),MAX($I$1:I7)+1,0) -> 7 | J8: Penyamakan Kulit Sapi, Kerbau Domba Kambing | L8: =IFERROR(VLOOKUP(ROWS($L$1:L7),$I$2:$J$50,2,FALSE),"") -> Penyamakan Kulit Sapi, Kerbau Domba Kambing
A9: Kaca Lembaran | B9: kg CO2/ton | C9: - | D9: 600 | E9: PERMENPERIN NO. 12 TAHUN 2020 | F9: ton | I9: =IF(ISNUMBER(SEARCH('Status Emisi'!$E$5,SIH!J9)),MAX($I$1:I8)+1,0) -> 8 | J9: Kaca Lembaran | L9: =IFERROR(VLOOKUP(ROWS($L$1:L8),$I$2:$J$50,2,FALSE),"") -> Kaca Lembaran
A10: Ubin Keramik Kategori BIIa, BIIb, BIII | B10: kg CO2/ton | C10: BIIa, BIIb, BIII | D10: 23000 | E10: PERMENPERIN NO. 12 TAHUN 2019 | F10: ton | I10: =IF(ISNUMBER(SEARCH('Status Emisi'!$E$5,SIH!J10)),MAX($I$1:I9)+1,0) -> 9 | J10: Ubin Keramik Kategori BIIa, BIIb, BIII | L10: =IFERROR(VLOOKUP(ROWS($L$1:L9),$I$2:$J$50,2,FALSE),"") -> Ubin Keramik Kategori BIIa, BIIb, BIII
A11: Ubin Keramik Kategori BIa, BIb | B11: kg CO2/ton | C11: BIa, BIb | D11: 18330 | E11: PERMENPERIN NO. 12 TAHUN 2019 | F11: ton | I11: =IF(ISNUMBER(SEARCH('Status Emisi'!$E$5,SIH!J11)),MAX($I$1:I10)+1,0) -> 10 | J11: Ubin Keramik Kategori BIa, BIb | L11: =IFERROR(VLOOKUP(ROWS($L$1:L10),$I$2:$J$50,2,FALSE),"") -> Ubin Keramik Kategori BIa, BIb
A12: Oleokimia Dasar bersumber Minyak Nabati | B12: kg CO2/ton | C12: - | D12: 1000 | E12: PERMENPERIN NO. 31 TAHUN 2021 | F12: ton | I12: =IF(ISNUMBER(SEARCH('Status Emisi'!$E$5,SIH!J12)),MAX($I$1:I11)+1,0) -> 11 | J12: Oleokimia Dasar bersumber Minyak Nabati | L12: =IFERROR(VLOOKUP(ROWS($L$1:L11),$I$2:$J$50,2,FALSE),"") -> Oleokimia Dasar bersumber Minyak Nabati
A13: Kopi Instan | B13: kg CO2/ton | D13: 3750 | E13: PERMENPERIN NO. 54 TAHUN 2020 | F13: ton | I13: =IF(ISNUMBER(SEARCH('Status Emisi'!$E$5,SIH!J13)),MAX($I$1:I12)+1,0) -> 12 | J13: Kopi Instan | L13: =IFERROR(VLOOKUP(ROWS($L$1:L12),$I$2:$J$50,2,FALSE),"") -> Kopi Instan
A14: Barang Lainnya dari Kaca | B14: kg CO2/ton | C14: - | D14: 600 | E14: PERMENPERIN NO. 30 TAHUN 2021 | F14: ton | I14: =IF(ISNUMBER(SEARCH('Status Emisi'!$E$5,SIH!J14)),MAX($I$1:I13)+1,0) -> 13 | J14: Barang Lainnya dari Kaca | L14: =IFERROR(VLOOKUP(ROWS($L$1:L13),$I$2:$J$50,2,FALSE),"") -> Barang Lainnya dari Kaca
A15: Tepung Terigu Tanpa Peletisasi | B15: kg CO2/ton | C15: Tanpa Peletisasi | D15: 45 | E15: PERMENPERIN NO. 32 TAHUN 2021 | F15: ton | I15: =IF(ISNUMBER(SEARCH('Status Emisi'!$E$5,SIH!J15)),MAX($I$1:I14)+1,0) -> 14 | J15: Tepung Terigu Tanpa Peletisasi | L15: =IFERROR(VLOOKUP(ROWS($L$1:L14),$I$2:$J$50,2,FALSE),"") -> Tepung Terigu Tanpa Peletisasi
A16: Tepung Terigu Dengan Peletisasi | C16: Dengan Peletisasi | D16: 50 | E16: PERMENPERIN NO. 32 TAHUN 2021 | F16: ton | I16: =IF(ISNUMBER(SEARCH('Status Emisi'!$E$5,SIH!J16)),MAX($I$1:I15)+1,0) -> 15 | J16: Tepung Terigu Dengan Peletisasi | L16: =IFERROR(VLOOKUP(ROWS($L$1:L15),$I$2:$J$50,2,FALSE),"") -> Tepung Terigu Dengan Peletisasi
A17: Pengasapan Karet (Ribbed Smoked Sheet) Tanpa Blower | B17: kg CO2/ton | C17: Tanpa Blower | D17: 20 | E17: PERMENPERIN NO. 33 TAHUN 2021 | F17: ton | I17: =IF(ISNUMBER(SEARCH('Status Emisi'!$E$5,SIH!J17)),MAX($I$1:I16)+1,0) -> 16 | J17: Pengasapan Karet (Ribbed Smoked Sheet) Tanpa Blower | L17: =IFERROR(VLOOKUP(ROWS($L$1:L16),$I$2:$J$50,2,FALSE),"") -> Pengasapan Karet (Ribbed Smoked Sheet) Tanpa Blower
A18: Pengasapan Karet (Ribbed Smoked Sheet) Dengan Blower | C18: Dengan Blower | D18: 115 | E18: PERMENPERIN NO. 33 TAHUN 2021 | F18: ton | I18: =IF(ISNUMBER(SEARCH('Status Emisi'!$E$5,SIH!J18)),MAX($I$1:I17)+1,0) -> 17 | J18: Pengasapan Karet (Ribbed Smoked Sheet) Dengan Blower | L18: =IFERROR(VLOOKUP(ROWS($L$1:L17),$I$2:$J$50,2,FALSE),"") -> Pengasapan Karet (Ribbed Smoked Sheet) Dengan Blower
A19: Gula Kristal Putih | B19: kg CO2/ton | C19: - | D19: 15 | E19: PERMENPERIN NO. 9 TAHUN 2020 | F19: ton | G19: tebu | I19: =IF(ISNUMBER(SEARCH('Status Emisi'!$E$5,SIH!J19)),MAX($I$1:I18)+1,0) -> 18 | J19: Gula Kristal Putih | L19: =IFERROR(VLOOKUP(ROWS($L$1:L18),$I$2:$J$50,2,FALSE),"") -> Gula Kristal Putih
A20: Peralatan Saniter dari Keramik | B20: kg CO2/ton | C20: - | D20: 1000 | E20: PERMENPERIN NO. 10 TAHUN 2020 | F20: ton | I20: =IF(ISNUMBER(SEARCH('Status Emisi'!$E$5,SIH!J20)),MAX($I$1:I19)+1,0) -> 19 | J20: Peralatan Saniter dari Keramik | L20: =IFERROR(VLOOKUP(ROWS($L$1:L19),$I$2:$J$50,2,FALSE),"") -> Peralatan Saniter dari Keramik
A21: Biskuit dan Produk Roti Kering Lainnya | B21: kg CO2/ton | C21: - | D21: 300 | E21: PERMENPERIN NO. 11 TAHUN 2020 | F21: ton | I21: =IF(ISNUMBER(SEARCH('Status Emisi'!$E$5,SIH!J21)),MAX($I$1:I20)+1,0) -> 20 | J21: Biskuit dan Produk Roti Kering Lainnya | L21: =IFERROR(VLOOKUP(ROWS($L$1:L20),$I$2:$J$50,2,FALSE),"") -> Biskuit dan Produk Roti Kering Lainnya
A22: Suku Cadang dan Silencer Kendaraan Roda Empat atau Lebih | B22: kg CO2/ton | C22: - | D22: 50.75 | E22: PERMENPERIN NO. 13 TAHUN 2020 | F22: ton | I22: =IF(ISNUMBER(SEARCH('Status Emisi'!$E$5,SIH!J22)),MAX($I$1:I21)+1,0) -> 21 | J22: Suku Cadang dan Silencer Kendaraan Roda Empat atau Lebih | L22: =IFERROR(VLOOKUP(ROWS($L$1:L21),$I$2:$J$50,2,FALSE),"") -> Suku Cadang dan Silencer Kendaraan Roda Empat atau Lebih
A23: Peralatan Rumah Tangga dari Keramik Single Firing | B23: kg CO2/ton | C23: Single Firing | D23: 3 | E23: PERMENPERIN NO. 46 TAHUN 2020 | F23: ton | I23: =IF(ISNUMBER(SEARCH('Status Emisi'!$E$5,SIH!J23)),MAX($I$1:I22)+1,0) -> 22 | J23: Peralatan Rumah Tangga dari Keramik Single Firing | L23: =IFERROR(VLOOKUP(ROWS($L$1:L22),$I$2:$J$50,2,FALSE),"") -> Peralatan Rumah Tangga dari Keramik Single Firing
A24: Peralatan Rumah Tangga dari Keramik Double Firing | C24: Double Firing | D24: 7 | E24: PERMENPERIN NO. 46 TAHUN 2020 | F24: ton | I24: =IF(ISNUMBER(SEARCH('Status Emisi'!$E$5,SIH!J24)),MAX($I$1:I23)+1,0) -> 23 | J24: Peralatan Rumah Tangga dari Keramik Double Firing | L24: =IFERROR(VLOOKUP(ROWS($L$1:L23),$I$2:$J$50,2,FALSE),"") -> Peralatan Rumah Tangga dari Keramik Double Firing
A25: Industri Air Mineral dalam Botol | B25: kg CO2/ton | C25: Botol | D25: 48 | E25: PERMENPERIN NO. 47 TAHUN 2020 | F25: ton | I25: =IF(ISNUMBER(SEARCH('Status Emisi'!$E$5,SIH!J25)),MAX($I$1:I24)+1,0) -> 24 | J25: Industri Air Mineral dalam Botol | L25: =IFERROR(VLOOKUP(ROWS($L$1:L24),$I$2:$J$50,2,FALSE),"") -> Industri Air Mineral dalam Botol
A26: Industri Air Mineral dalam Galon | C26: Galon | D26: 26 | E26: PERMENPERIN NO. 47 TAHUN 2020 | F26: ton | I26: =IF(ISNUMBER(SEARCH('Status Emisi'!$E$5,SIH!J26)),MAX($I$1:I25)+1,0) -> 25 | J26: Industri Air Mineral dalam Galon | L26: =IFERROR(VLOOKUP(ROWS($L$1:L25),$I$2:$J$50,2,FALSE),"") -> Industri Air Mineral dalam Galon
A27: Kemasan dari Kaca | B27: kg CO2/ton | C27: - | D27: 600 | E27: PERMENPERIN NO. 48 TAHUN 2020 | F27: ton | I27: =IF(ISNUMBER(SEARCH('Status Emisi'!$E$5,SIH!J27)),MAX($I$1:I26)+1,0) -> 26 | J27: Kemasan dari Kaca | L27: =IFERROR(VLOOKUP(ROWS($L$1:L26),$I$2:$J$50,2,FALSE),"") -> Kemasan dari Kaca
A28: Kertas dan Papan Kertas Bergelombang | B28: kg CO2/ton | C28: - | D28: 1400 | E28: PERMENPERIN NO. 49 TAHUN 2020 | F28: ton | I28: =IF(ISNUMBER(SEARCH('Status Emisi'!$E$5,SIH!J28)),MAX($I$1:I27)+1,0) -> 27 | J28: Kertas dan Papan Kertas Bergelombang | L28: =IFERROR(VLOOKUP(ROWS($L$1:L27),$I$2:$J$50,2,FALSE),"") -> Kertas dan Papan Kertas Bergelombang
A29: Cat Berbasis Pelarut Organik | B29: kg CO2/ton | C29: - | D29: 58 | E29: PERMENPERIN NO. 51 TAHUN 2020 | F29: ton | I29: =IF(ISNUMBER(SEARCH('Status Emisi'!$E$5,SIH!J29)),MAX($I$1:I28)+1,0) -> 28 | J29: Cat Berbasis Pelarut Organik | L29: =IFERROR(VLOOKUP(ROWS($L$1:L28),$I$2:$J$50,2,FALSE),"") -> Cat Berbasis Pelarut Organik
A30: Kaca Pengaman Berlapis Kendaraan Besar | B30: kg CO2/ton | C30: Kendaraan Besar | D30: 66 | E30: PERMENPERIN NO. 52 TAHUN 2020 | F30: m2 | G30: per m2 | I30: =IF(ISNUMBER(SEARCH('Status Emisi'!$E$5,SIH!J30)),MAX($I$1:I29)+1,0) -> 29 | J30: Kaca Pengaman Berlapis Kendaraan Besar | L30: =IFERROR(VLOOKUP(ROWS($L$1:L29),$I$2:$J$50,2,FALSE),"") -> Kaca Pengaman Berlapis Kendaraan Besar
A31: Kaca Pengaman Berlapis Kendaraan Kecil | C31: Kendaraan Kecil | D31: 9 | E31: PERMENPERIN NO. 52 TAHUN 2020 | F31: m2 | G31: per m2 | I31: =IF(ISNUMBER(SEARCH('Status Emisi'!$E$5,SIH!J31)),MAX($I$1:I30)+1,0) -> 30 | J31: Kaca Pengaman Berlapis Kendaraan Kecil | L31: =IFERROR(VLOOKUP(ROWS($L$1:L30),$I$2:$J$50,2,FALSE),"") -> Kaca Pengaman Berlapis Kendaraan Kecil
A32: Kaca Pengaman Berlapis Bangunan | C32: Bangunan | D32: 10 | E32: PERMENPERIN NO. 52 TAHUN 2020 | F32: m2 | G32: per m2 | I32: =IF(ISNUMBER(SEARCH('Status Emisi'!$E$5,SIH!J32)),MAX($I$1:I31)+1,0) -> 31 | J32: Kaca Pengaman Berlapis Bangunan | L32: =IFERROR(VLOOKUP(ROWS($L$1:L31),$I$2:$J$50,2,FALSE),"") -> Kaca Pengaman Berlapis Bangunan
A33: Industri Kaca Pengaman Diperkeras/Tempered Kendaraan Besar | B33: kg CO2/ton | C33: Kendaraan Besar | D33: 23 | E33: PERMENPERIN NO. 53 TAHUN 2020 | F33: m2 | G33: per m2 | I33: =IF(ISNUMBER(SEARCH('Status Emisi'!$E$5,SIH!J33)),MAX($I$1:I32)+1,0) -> 32 | J33: Industri Kaca Pengaman Diperkeras/Tempered Kendaraan Besar | L33: =IFERROR(VLOOKUP(ROWS($L$1:L32),$I$2:$J$50,2,FALSE),"") -> Industri Kaca Pengaman Diperkeras/Tempered Kendaraan Besar
A34: Industri Kaca Pengaman Diperkeras/Tempered Kendaraan Kecil | C34: Kendaraan Kecil | D34: 14.5 | E34: PERMENPERIN NO. 53 TAHUN 2020 | F34: m2 | G34: per m2 | I34: =IF(ISNUMBER(SEARCH('Status Emisi'!$E$5,SIH!J34)),MAX($I$1:I33)+1,0) -> 33 | J34: Industri Kaca Pengaman Diperkeras/Tempered Kendaraan Kecil | L34: =IFERROR(VLOOKUP(ROWS($L$1:L33),$I$2:$J$50,2,FALSE),"") -> Industri Kaca Pengaman Diperkeras/Tempered Kendaraan Kecil
A35: Industri Kaca Pengaman Diperkeras/Tempered Bangunan | C35: Bangunan | D35: 32 | E35: PERMENPERIN NO. 53 TAHUN 2020 | F35: m2 | G35: per m2 | I35: =IF(ISNUMBER(SEARCH('Status Emisi'!$E$5,SIH!J35)),MAX($I$1:I34)+1,0) -> 34 | J35: Industri Kaca Pengaman Diperkeras/Tempered Bangunan | L35: =IFERROR(VLOOKUP(ROWS($L$1:L34),$I$2:$J$50,2,FALSE),"") -> Industri Kaca Pengaman Diperkeras/Tempered Bangunan
A36: Ribbed Smoked Sheet Rubber | B36: kg CO2/ton | C36: - | D36: 18.13 | E36: PERMENPERIN NO. 10 TAHUN 2019 | F36: ton | I36: =IF(ISNUMBER(SEARCH('Status Emisi'!$E$5,SIH!J36)),MAX($I$1:I35)+1,0) -> 35 | J36: Ribbed Smoked Sheet Rubber | L36: =IFERROR(VLOOKUP(ROWS($L$1:L35),$I$2:$J$50,2,FALSE),"") -> Ribbed Smoked Sheet Rubber
A37: Bubur Kertas Pulp | B37: kg CO2/ton | C37: Pulp | D37: 350 | E37: PERMENPERIN NO. 11 TAHUN 2019 | F37: ton | G37: ton pulp | I37: =IF(ISNUMBER(SEARCH('Status Emisi'!$E$5,SIH!J37)),MAX($I$1:I36)+1,0) -> 36 | J37: Bubur Kertas Pulp | L37: =IFERROR(VLOOKUP(ROWS($L$1:L36),$I$2:$J$50,2,FALSE),"") -> Bubur Kertas Pulp
A38: Bubur Kertas Pulp terintegrasi Kertas | B38: kg CO2/ton | C38: Pulp terintegrasi kertas | D38: 1500 | E38: PERMENPERIN NO. 11 TAHUN 2019 | F38: ton | G38: ton kertas | I38: =IF(ISNUMBER(SEARCH('Status Emisi'!$E$5,SIH!J38)),MAX($I$1:I37)+1,0) -> 37 | J38: Bubur Kertas Pulp terintegrasi Kertas | L38: =IFERROR(VLOOKUP(ROWS($L$1:L37),$I$2:$J$50,2,FALSE),"") -> Bubur Kertas Pulp terintegrasi Kertas
A39: Tekstil Pencelupan, Pencapan, dan Penyempurnaan | B39: kg CO2/ton | C39: - | D39: 2030 | E39: PERMENPERIN NO. 13 TAHUN 2019 | F39: ton | I39: =IF(ISNUMBER(SEARCH('Status Emisi'!$E$5,SIH!J39)),MAX($I$1:I38)+1,0) -> 38 | J39: Tekstil Pencelupan, Pencapan, dan Penyempurnaan | L39: =IFERROR(VLOOKUP(ROWS($L$1:L38),$I$2:$J$50,2,FALSE),"") -> Tekstil Pencelupan, Pencapan, dan Penyempurnaan
A40: Cat Berbasis Air | B40: kg CO2/ton | C40: - | D40: 58 | E40: PERMENPERIN NO. 38 TAHUN 2019 | F40: ton | I40: =IF(ISNUMBER(SEARCH('Status Emisi'!$E$5,SIH!J40)),MAX($I$1:I39)+1,0) -> 39 | J40: Cat Berbasis Air | L40: =IFERROR(VLOOKUP(ROWS($L$1:L39),$I$2:$J$50,2,FALSE),"") -> Cat Berbasis Air
A41: Batik | B41: kg CO2/ton | C41: - | D41: 1.58 | E41: PERMENPERIN NO. 39 TAHUN 2019 | F41: m2 | G41: per m2 | I41: =IF(ISNUMBER(SEARCH('Status Emisi'!$E$5,SIH!J41)),MAX($I$1:I40)+1,0) -> 40 | J41: Batik | L41: =IFERROR(VLOOKUP(ROWS($L$1:L40),$I$2:$J$50,2,FALSE),"") -> Batik
A42: Kertas Budaya | B42: kg CO2/ton | C42: - | D42: 14000 | E42: PERMENPERIN NO. 40 TAHUN 2019 | F42: ton | I42: =IF(ISNUMBER(SEARCH('Status Emisi'!$E$5,SIH!J42)),MAX($I$1:I41)+1,0) -> 41 | J42: Kertas Budaya | L42: =IFERROR(VLOOKUP(ROWS($L$1:L41),$I$2:$J$50,2,FALSE),"") -> Kertas Budaya
A43: Minyak Goreng dari Kelapa Sawit, energi Batubara | B43: kg CO2/ton | C43: Batubara | D43: 155 | E43: PERMENPERIN NO. 41 TAHUN 2019 | F43: ton | I43: =IF(ISNUMBER(SEARCH('Status Emisi'!$E$5,SIH!J43)),MAX($I$1:I42)+1,0) -> 42 | J43: Minyak Goreng dari Kelapa Sawit, energi Batubara | L43: =IFERROR(VLOOKUP(ROWS($L$1:L42),$I$2:$J$50,2,FALSE),"") -> Minyak Goreng dari Kelapa Sawit, energi Batubara
A44: Minyak Goreng dari Kelapa Sawit, energi Biomassa | C44: Biomassa | D44: 0 | E44: PERMENPERIN NO. 41 TAHUN 2019 | F44: ton | I44: =IF(ISNUMBER(SEARCH('Status Emisi'!$E$5,SIH!J44)),MAX($I$1:I43)+1,0) -> 43 | J44: Minyak Goreng dari Kelapa Sawit, energi Biomassa | L44: =IFERROR(VLOOKUP(ROWS($L$1:L43),$I$2:$J$50,2,FALSE),"") -> Minyak Goreng dari Kelapa Sawit, energi Biomassa
A45: Minyak Goreng dari Kelapa Sawit, energi Gas | C45: Gas | D45: 150 | E45: PERMENPERIN NO. 41 TAHUN 2019 | F45: ton | I45: =IF(ISNUMBER(SEARCH('Status Emisi'!$E$5,SIH!J45)),MAX($I$1:I44)+1,0) -> 44 | J45: Minyak Goreng dari Kelapa Sawit, energi Gas | L45: =IFERROR(VLOOKUP(ROWS($L$1:L44),$I$2:$J$50,2,FALSE),"") -> Minyak Goreng dari Kelapa Sawit, energi Gas
A46: Industri Semen Portland Cementitious | B46: kg CO2/ton | C46: Cementitious | D46: 750 | E46: PERMENPERIN NO. 26 TAHUN 2018 | F46: ton | I46: =IF(ISNUMBER(SEARCH('Status Emisi'!$E$5,SIH!J46)),MAX($I$1:I45)+1,0) -> 45 | J46: Industri Semen Portland Cementitious | L46: =IFERROR(VLOOKUP(ROWS($L$1:L45),$I$2:$J$50,2,FALSE),"") -> Industri Semen Portland Cementitious
A47: Pupuk Urea, Pupuk SP-36, dan Pupuk Amonium Sulfat | B47: kg CO2/ton | D47: 1600 | E47: PERMENPERIN NO. 27 TAHUN 2018 | F47: ton | I47: =IF(ISNUMBER(SEARCH('Status Emisi'!$E$5,SIH!J47)),MAX($I$1:I46)+1,0) -> 46 | J47: Pupuk Urea, Pupuk SP-36, dan Pupuk Amonium Sulfat | L47: =IFERROR(VLOOKUP(ROWS($L$1:L46),$I$2:$J$50,2,FALSE),"") -> Pupuk Urea, Pupuk SP-36, dan Pupuk Amonium Sulfat
A48: Pengolahan Susu Bubuk dengan Evaporasi & Spray Drying | B48: kg CO2/ton | C48: Evaporasi, Spray Drying | D48: 800 | E48: PERMENPERIN NO. 28 TAHUN 2018 | F48: ton | I48: =IF(ISNUMBER(SEARCH('Status Emisi'!$E$5,SIH!J48)),MAX($I$1:I47)+1,0) -> 47 | J48: Pengolahan Susu Bubuk dengan Evaporasi & Spray Drying | L48: =IFERROR(VLOOKUP(ROWS($L$1:L47),$I$2:$J$50,2,FALSE),"") -> Pengolahan Susu Bubuk dengan Evaporasi & Spray Drying
A49: Pengolahan Susu Bubuk dengan Non Evaporasi & Spray Drying | C49: Non Evap, Spray Drying | D49: 600 | E49: PERMENPERIN NO. 28 TAHUN 2018 | F49: ton | I49: =IF(ISNUMBER(SEARCH('Status Emisi'!$E$5,SIH!J49)),MAX($I$1:I48)+1,0) -> 48 | J49: Pengolahan Susu Bubuk dengan Non Evaporasi & Spray Drying | L49: =IFERROR(VLOOKUP(ROWS($L$1:L48),$I$2:$J$50,2,FALSE),"") -> Pengolahan Susu Bubuk dengan Non Evaporasi & Spray Drying
A50: Pengolahan Susu Bubuk dengan Dry Blending | C50: Dry Blending | D50: 200 | E50: PERMENPERIN NO. 28 TAHUN 2018 | F50: ton | I50: =IF(ISNUMBER(SEARCH('Status Emisi'!$E$5,SIH!J50)),MAX($I$1:I49)+1,0) -> 49 | J50: Pengolahan Susu Bubuk dengan Dry Blending | L50: =IFERROR(VLOOKUP(ROWS($L$1:L49),$I$2:$J$50,2,FALSE),"") -> Pengolahan Susu Bubuk dengan Dry Blending

Sheet FE BB Stasioner (hidden)
A1: Jenis Bahan Bakar | B1: FE Default IPCC 2006 sumber tak Bergerak, kg/TJ
B2: CO2 | C2: CH4 | D2: N2O
A3: Minyak Mentah | B3: 73300 | C3: 3 | D3: 0.6
A4: Orimulsion | B4: 77000 | C4: 3 | D4: 0.6
A5: LNG/CNG | B5: 64200 | C5: 3 | D5: 0.6
A6: Premium | B6: 69300 | C6: 3 | D6: 0.6
A7: Pertalite | B7: 69300 | C7: 3 | D7: 0.6
A8: Pertamax | B8: 69300 | C8: 3 | D8: 0.6
A9: Pertamax Plus/Turbo | B9: 69300 | C9: 3 | D9: 0.6
A10: Avgas | B10: 70000 | C10: 3 | D10: 0.6
A11: Avtur | B11: 70000 | C11: 3 | D11: 0.6
A12: Kerosin Jet | B12: 71500 | C12: 3 | D12: 0.6
A13: Kerosin Lain | B13: 71900 | C13: 3 | D13: 0.6
A14: Shale oil | B14: 73300 | C14: 3 | D14: 0.6
A15: Solar | B15: 74100 | C15: 3 | D15: 0.6
A16: Residu | B16: 77400 | C16: 3 | D16: 0.6
A17: LPG | B17: 63100 | C17: 1 | D17: 0.1
A18: Ethana | B18: 61600 | C18: 1 | D18: 0.1
A19: Nafta | B19: 73300 | C19: 3 | D19: 0.6
A20: Bitumen | B20: 80700 | C20: 3 | D20: 0.6
A21: Pelumas | B21: 73300 | C21: 3 | D21: 0.6
A22: Kokas | B22: 97500 | C22: 3 | D22: 0.6
A23: Refinery feedstock | B23: 73300 | C23: 3 | D23: 0.6
A24: Refinery gas | B24: 57600 | C24: 1 | D24: 0.1
A25: Parafin | B25: 73300 | C25: 3 | D25: 0.6
A26: Solvent | B26: 73300 | C26: 3 | D26: 0.6
A27: Antrasit | B27: 98300 | C27: 1 | D27: 1.5
A28: Arang Kokas | B28: 94600 | C28: 1 | D28: 1.5
A29: Batubara Bitumen | B29: 94600 | C29: 1 | D29: 1.5
A30: Batubara Sub-bitumen | B30: 96100 | C30: 1 | D30: 1.5
A31: Lignit | B31: 101000 | C31: 1 | D31: 1.5
A32: Bubuk Tar | B32: 107000 | C32: 1 | D32: 1.5
A33: Briket Batubara | B33: 97500 | C33: 1 | D33: 1.5
A34: Kokas Lignit | B34: 107000 | C34: 1 | D34: 1.5
A35: Kokas Gas | B35: 107000 | C35: 1 | D35: 0.1
A36: Tar Batubara | B36: 80700 | C36: 1 | D36: 1.5
A37: Gas Works Gas | B37: 44400 | C37: 1 | D37: 0.1
A38: Coke Oven Gas | B38: 44400 | C38: 1 | D38: 0.1
A39: Blast Furnace Gas | B39: 260000 | C39: 1 | D39: 0.1
A40: Oxygen Steel Furnace Gas | B40: 182000 | C40: 1 | D40: 0.1
A41: Gas Alam | B41: 56100 | C41: 1 | D41: 0.1
A42: Limbah Kota | B42: 91700 | C42: 30 | D42: 4
A43: Minyak Limbah | B43: 73300 | C43: 30 | D43: 4
A44: Biodiesel | B44: 70800 | C44: 3 | D44: 0.6
A45: Biogasoline | B45: 70800 | C45: 3 | D45: 0.6
A46: Landfill Gas | B46: 54600 | C46: 1 | D46: 0.1
A47: Sludge Gas | B47: 54600 | C47: 1 | D47: 0.1
A48: Biogas Lainnya | B48: 54600 | C48: 1 | D48: 0.1
A49: Gambut | B49: 106000 | C49: 1 | D49: 1.5 | F49: Biomass
A50: Kayu/Limbah Kayu | B50: 112000 | C50: 30 | D50: 4
A51: Arang Kayu | B51: 112000 | C51: 200 | D51: 4
A52: Biomass padat lain | B52: 100000 | C52: 30 | D52: 4
A53: Liquor Hitam | B53: 95300 | C53: 3 | D53: 2

Sheet FE BB Gerak (hidden)
A1: Jenis Bahan Bakar | B1: FE Default IPCC 2006 sumber Bergerak, kg/TJ
B2: CO2 | C2: CH4 | D2: N2O
A3: LNG/CNG | B3: 56100 | C3: 92 | D3: 3
A4: Premium | B4: 69300 | C4: 33 | D4: 3.2
A5: Pertalite | B5: 69300 | C5: 33 | D5: 3.2
A6: Pertamax | B6: 69300 | C6: 33 | D6: 3.2
A7: Pertamax Plus/Turbo | B7: 69300 | C7: 33 | D7: 3.2
A8: Avgas | B8: 70000 | C8: 0.5 | D8: 2
A9: Avtur | B9: 71500 | C9: 3 | D9: 0.6
A10: Kerosin Jet | B10: 71500 | C10: 3 | D10: 0.6
A11: Kerosin Lain | B11: 71900 | C11: 3 | D11: 0.6
A12: Solar | B12: 74100 | C12: 3.9 | D12: 3.9
A13: Residu | B13: 77400 | C13: 7 | D13: 2
A14: LPG | B14: 63100 | C14: 62 | D14: 0.2
A15: Pelumas | B15: 73300 | C15: 3 | D15: 0.6
A16: Refinery gas | B16: 57600 | C16: 1 | D16: 0.1
A17: Parafin | B17: 73300 | C17: 3 | D17: 0.6
A18: Solvent | B18: 73300 | C18: 3 | D18: 0.6
A19: Batubara Sub-bitumen | B19: 96100 | C19: 2 | D19: 1.5
A20: Gas Alam | B20: 56100 | C20: 92 | D20: 3

Sheet FE Listrik (hidden)
A1: Grid | B1: Emission Factor (Gatrik ESDM 2019) | C1: Provinsi | D1: OM (CO2/MWh) | E1: FE Data ESDM Gatrik, 2019 (kg CO2/kWh) | G1: OM (CO2/MWh) | H1: FE Data ESDM Gatrik, 2019 (ton CO2/MWh)
B2: OM Ex-Post (kg CO2/kWh) | E2: Ex-Post | F2: Ex-Ante | H2: Ex-Post | I2: Ex-Ante
A4: Adonara - NTT | B4: 0,59 | C4: Bali | D4: 0,77 | E4: 0,94 | F4: 0,93 | G4: =D4*1000 -> 770 | H4: =E4*1000 -> 940 | I4: =F4*1000 -> 930
A5: Alor - NTT | B5: 0,58 | C5: Nusa Tenggara Timur | D5: 0,52 | E5: 0,87 | F5: N/A | G5: =D5*1000 -> 520 | H5: 0 | I5: 0
A6: Ambon - Maluku | B6: 0,66 | C6: Kepulauan Riau | D6: 0,59 | E6: 0,59 | F6: 0,88 | G6: 590 | H6: =E6*1000 -> 590 | I6: 880
A7: Bangka - Bangka Belitung | B7: 0,89 | C7: Nusa Tenggara Timur | D7: 0,58 | E7: 0,58 | F7: 0,58 | G7: 580 | H7: 580 | I7: 580
A8: Barito - Kalimantan Tengah | B8: 1,31 | C8: Maluku | D8: 0,65 | E8: 0,66 | F8: 0,66 | G8: 650 | H8: 660 | I8: 660
A9: Batam - Kep. Riau | B9: 0,82 | C9: Sulawesi Tengah | D9: 1,04 | E9: 0,89 | F9: 0,88 | G9: 1040 | H9: 890 | I9: 880
A10: Bau-Bau - Sulawesi Tenggara | B10: 0,74 | C10: Sulawesi Tengah | D10: 0,80 | E10: 0,87 | F10: 0,87 | G10: 800 | H10: =E10*1000 -> 870 | I10: 870
A11: Belitung - Bangka Belitung | B11: 1,41 | C11: Bangka Belitung | D11: 1,20 | E11: 1,31 | F11: 1,28 | G11: 1200 | H11: 1310 | I11: 1280
A12: Bengkalis - Riau | B12: 0,01 | C12: Bengkulu | D12: 0,76 | E12: 0,82 | F12: 0,85 | G12: 760 | H12: 820 | I12: 850
A13: Biak - Papua | B13: 0,57 | C13: Kalimantan Tengah | D13: 0,97 | E13: 0,74 | F13: 0,67 | G13: 970 | H13: 740 | I13: 670
A14: Bima - NTB | B14: 0,55 | C14: Kepulauan Riau | D14: 1,40 | E14: 1,41 | F14: 1,46 | G14: 1400 | H14: 1410 | I14: 1460
A15: Bualemo - Sulawesi Tengah | B15: 0,71 | C15: Sulawesi Tenggara | D15: 0,01 | E15: 0,01 | F15: 0,01 | G15: 10 | H15: 10 | I15: 10
A16: Buano - Maluku | B16: 0,71 | C16: Bangka Belitung | D16: 0,77 | E16: 0,94 | F16: 0,93 | G16: 770 | H16: 940 | I16: 930
A17: Buli - Maluku Utara | B17: 0,65 | C17: Riau | D17: 0,57 | E17: 0,57 | F17: 0,61 | G17: 570 | H17: =E17*1000 -> 570 | I17: =F17*1000 -> 610
A18: Concong Luar - Riau | B18: 0,67 | C18: Maluku Utara | D18: 0,56 | E18: 0,55 | F18: 0,57 | G18: 560 | H18: =E18*1000 -> 550 | I18: 570
A19: Dabo Singkep - Kep.Riau | B19: 0,48 | C19: Papua | D19: 0,70 | E19: 0,71 | F19: 0,71 | G19: 700 | H19: 710 | I19: 710
A20: Daruba - Maluku Utara | B20: 0,60 | C20: Sulawesi Utara | D20: 0,71 | E20: 0,71 | F20: 0,67 | G20: 710 | H20: 710 | I20: 670
A21: Dobo - Maluku | B21: 0,54 | C21: Maluku Utara | D21: 0,65 | E21: 0,65 | F21: 0,71 | G21: 650 | H21: =E21*1000 -> 650 | I21: =F21*1000 -> 710
A22: Ende - NTT | B22: 1,03 | C22: Nusa Tenggara Barat | D22: 0,67 | E22: 0,67 | F22: 0,69 | G22: 670 | H22: =E22*1000 -> 670 | I22: =F22*1000 -> 690
A23: Ibu - Maluku Utara | B23: 0,60 | C23: Sulawesi Tengah | D23: 0,48 | E23: 0,48 | F23: N/A | G23: 480 | H23: =E23*1000 -> 480 | I23: 0
A24: Ipuh - Bengkulu | B24: 0,64 | C24: Maluku | D24: 0,60 | E24: 0,60 | F24: 0,63 | G24: 600 | H24: 600 | I24: =F24*1000 -> 630
A25: Banten | B25: 0,87 | C25: Sulawesi Utara | D25: 0,80 | E25: 0,87 | F25: 0,87 | G25: 800 | H25: 870 | I25: 870
A26: DKI Jakarta | B26: 0,87 | C26: Maluku | D26: 0,80 | E26: 0,87 | F26: 0,87 | G26: =D26*1000 -> 800 | H26: 870 | I26: 870
A27: Jawa Barat | B27: 0,87 | C27: Maluku Utara | D27: 0,54 | E27: 0,54 | F27: 0,60 | G27: 540 | H27: 540 | I27: 600
A28: Jawa Tengah | B28: 0,87 | C28: Sulawesi Tengah | D28: 1,08 | E28: 1,03 | F28: 1,12 | G28: 1080 | H28: 1030 | I28: 1120
A29: DI Yogyakarta | B29: 0,87 | C29: Sulawesi Tengah | D29: 0,67 | E29: 0,78 | F29: 0,78 | G29: 670 | H29: 780 | I29: 780
A30: Jawa Timur | B30: 0,87 | C30: Riau | D30: 0,60 | E30: 0,60 | F30: 0,64 | G30: 600 | H30: 600 | I30: 640
A31: Jayapura - Papua | B31: 0,51 | C31: Kepulauan Riau | D31: 0,64 | E31: 0,64 | F31: 0,69 | G31: 640 | H31: 640 | I31: 690
A32: Karakelang - Sulawesi Utara | B32: 0,53 | C32: Maluku Utara | D32: 0,77 | E32: 0,94 | F32: 0,93 | G32: 770 | H32: =E32*1000 -> 940 | I32: 930
A33: Kendari - Sulawesi Tenggara | B33: 1,02 | C33: Maluku | D33: 0,80 | E33: 0,87 | F33: 0,87 | G33: 800 | H33: 870 | I33: 870
A34: Kesui - Maluku | B34: 0,76 | C34: Kepulauan Riau | D34: 0,80 | E34: 0,87 | F34: 0,87 | G34: 800 | H34: 870 | I34: 870
A35: Pontianak - KalBar | B35: 1,63 | C35: Nusa Tenggara Timur | D35: 0,80 | E35: 0,87 | F35: 0,87 | G35: 800 | H35: 870 | I35: 870
A36: Kian Darat - Maluku | B36: 0,61 | C36: Maluku | D36: 0,50 | E36: 0,51 | F36: 0,56 | G36: 500 | H36: 510 | I36: 560
A37: Kisar - Maluku | B37: 0,57 | C37: Maluku | D37: 0,54 | E37: 0,53 | F37: N/A | G37: 540 | H37: =E37*1000 -> 530 | I37: 0
A38: Kobisonta - Maluku | B38: 0,59 | C38: Maluku Utara | D38: 0,87 | E38: 1,02 | F38: 1,08 | G38: 870 | H38: =E38*1000 -> 1020 | I38: =F38*1000 -> 1080
A39: Kolaka - Sulawesi Tenggara | B39: 0,46 | C39: Bengkulu | D39: 0,76 | E39: 0,76 | F39: 0,86 | G39: 760 | H39: 760 | I39: 860
A40: Kota Bani - Bengkulu | B40: 0,70 | C40: Maluku Utara | D40: 1,67 | E40: 1,63 | F40: 1,41 | G40: 1670 | H40: 1630 | I40: 1410
A41: Kota Lama - Riau | B41: 0,59 | C41: Banten | D41: 0,61 | E41: 0,61 | F41: 0,65 | G41: 610 | H41: 610 | I41: 650
A42: Kotaraya - Sulawesi Tengah | B42: 0,49 | C42: Dki Jakarta | D42: 0,57 | E42: 0,57 | F42: 0,70 | G42: 570 | H42: 570 | I42: 700
A43: Ladan - Kep. Riau | B43: 0,54 | C43: Jawa Barat | D43: 0,59 | E43: 0,59 | F43: 0,66 | G43: 590 | H43: 590 | I43: 660
A44: Laimu - Maluku | B44: 0,67 | C44: Jawa Tengah | D44: 0,37 | E44: 0,46 | F44: 0,50 | G44: 370 | H44: 460 | I44: 500
A45: Lambuya - Sulawesi Tenggara | B45: 0,56 | C45: Di Yogyakarta | D45: 0,70 | E45: 0,70 | F45: 0,75 | G45: 700 | H45: 700 | I45: 750
A46: Lelang - Sulawesi Tengah | B46: 0,60 | C46: Jawa Timur | D46: 0,59 | E46: 0,59 | F46: 0,50 | G46: 590 | H46: 590 | I46: 500
A47: Lemang - Riau | B47: 0,56 | C47: Papua | D47: 0,47 | E47: 0,49 | F47: 0,47 | G47: 470 | H47: 490 | I47: 470
A48: Letung - Kepulauan Riau | B48: 0,63 | C48: Maluku | D48: 0,54 | E48: 0,54 | F48: N/A | G48: 540 | H48: =E48*1000 -> 540 | I48: 0
A49: Lirung - Sulawesi Utara | B49: 0,57 | C49: Sulawesi Utara | D49: 0,66 | E49: 0,67 | F49: 0,72 | G49: =D49*1000 -> 660 | H49: 670 | I49: =F49*1000 -> 720
A50: Lombok - NTB | B50: 1,61 | C50: Sulawesi Utara | D50: 0,57 | E50: 0,56 | F50: 0,57 | G50: 570 | H50: 560 | I50: 570
A51: Lumbi-lumbia - SulTeng | B51: 0,78 | C51: Jawa Tengah | D51: 0,77 | E51: 0,94 | F51: 0,93 | G51: 770 | H51: 940 | I51: 930
A52: Luwuk - Sulawesi Tengah | B52: 0,60 | C52: Maluku Utara | D52: 0,61 | E52: 0,60 | F52: 0,59 | G52: 610 | H52: 600 | I52: 590
A53: Mahakam - Kalimantan Timur | B53: 1,14 | C53: Kepulauan Riau | D53: 0,56 | E53: 0,56 | F53: 0,61 | G53: 560 | H53: 560 | I53: 610
A54: Mangaran - Sulawesi Utara | B54: 0,62 | C54: Sulawesi Tenggara | D54: 0,63 | E54: 0,63 | F54: 0,66 | G54: 630 | H54: 630 | I54: 660
A55: Manokwari - Papua Barat | B55: 0,56 | C55: Maluku | D55: 0,57 | E55: 0,57 | F55: N/A | G55: 570 | H55: 570 | I55: 0
A56: Maumere - NTT | B56: 0,56 | C56: Kalimantan Barat | D56: 1,27 | E56: 1,61 | F56: 1,39 | G56: 1270 | H56: 1610 | I56: =F56*1000 -> 1390
A57: Merauke - Papua | B57: 0,55 | C57: Maluku | D57: 0,78 | E57: 0,78 | F57: 0,79 | G57: 780 | H57: 780 | I57: =F57*1000 -> 790
A58: Moa - Maluku | B58: 0,51 | C58: Maluku | D58: 0,60 | E58: 0,60 | F58: 0,64 | G58: 600 | H58: 600 | I58: =F58*1000 -> 640
A59: Nabire - Papua | B59: 0,52 | C59: Maluku | D59: 1,12 | E59: 1,14 | F59: 1,14 | G59: 1120 | H59: 1140 | I59: =F59*1000 -> 1140
A60: Namlea - Maluku | B60: 0,60 | C60: Sulawesi Tenggara | D60: 0,63 | E60: 0,62 | F60: N/A | G60: 630 | H60: 620 | I60: 0
A61: Nias - Sumatera Utara | B61: 0,75 | C61: Bengkulu | D61: 0,56 | E61: 0,56 | F61: 0,61 | G61: 560 | H61: 560 | I61: =F61*1000 -> 610
A62: Pagai Selatan - Sum. Barat | B62: 0,66 | C62: Riau | D62: 0,57 | E62: 0,56 | F62: 0,61 | G62: 570 | H62: 560 | I62: 610
A63: Palu - Sulawesi Tengah | B63: 0,54 | C63: Sulawesi Tengah | D63: 0,55 | E63: 0,55 | F63: 0,61 | G63: 550 | H63: 550 | I63: 610
A64: Pulau Buru - Maluku | B64: 0,56 | C64: Kepulauan Riau | D64: 0,51 | E64: 0,51 | F64: 0,62 | G64: 510 | H64: 510 | I64: 620
A65: Pulau Halang - Riau | B65: 0,60 | C65: Maluku | D65: 0,53 | E65: 0,52 | F65: 0,58 | G65: =D65*1000 -> 530 | H65: 520 | I65: 580
A66: Pulau Tello - SulSel | B66: 0,91 | C66: Sulawesi Tenggara | D66: 0,60 | E66: 0,60 | F66: 0,60 | G66: 600 | H66: 600 | I66: 600
A67: Raha - Sulawesi Tenggara | B67: 0,57 | C67: Maluku | D67: 0,44 | E67: 0,43 | F67: N/A | G67: 440 | H67: 430 | I67: 0
A68: Ranai - Kepulauan Riau | B68: 0,57 | C68: Sulawesi Tengah | D68: 0,77 | E68: 0,75 | F68: 0,75 | G68: 770 | H68: 750 | I68: =F68*1000 -> 750
A69: S Nasik - Bangka Belitung | B69: 0,43 | C69: Riau | D69: 0,67 | E69: 0,66 | F69: 0,73 | G69: 670 | H69: 660 | I69: =F69*1000 -> 730
A70: Saumlaki - Maluku | B70: 0,51 | C70: Nusa Tenggara Timur | D70: 0,54 | E70: 0,54 | F70: 0,55 | G70: 540 | H70: 540 | I70: =F70*1000 -> 550
A71: Selat Panjang - Riau | B71: 0,51 | C71: Kepulauan Riau | D71: 0,57 | E71: 0,56 | F71: 0,57 | G71: 570 | H71: 560 | I71: =F71*1000 -> 570
A72: Serui - Papua | B72: 0,59 | C72: Sulawesi Tengah | D72: 0,60 | E72: 0,60 | F72: 0,57 | G72: 600 | H72: =E72*1000 -> 600 | I72: 570
A73: Siberut - Sumatera Barat | B73: 0,70 | C73: Maluku | D73: 0,82 | E73: 0,91 | F73: 0,88 | G73: 820 | H73: 910 | I73: 880
A74: Siberut Utara - Sum. Barat | B74: 0,71 | C74: Sulawesi Utara | D74: 0,57 | E74: 0,57 | F74: 0,58 | G74: 570 | H74: 570 | I74: 580
A75: Sipora - Sumatera Barat | B75: 0,67 | C75: Maluku Utara | D75: 0,57 | E75: 0,57 | F75: N/A | G75: 570 | H75: =E75*1000 -> 570 | I75: 0
A76: Sorong - Papua Barat | B76: 0,56 | C76: Nusa Tenggara Barat | D76: 0,77 | E76: 0,94 | F76: 0,93 | G76: 770 | H76: =E76*1000 -> 940 | I76: =F76*1000 -> 930
A77: Sulawesi Selatan | B77: 0,95 | C77: Maluku | D77: 0,52 | E77: 0,51 | F77: 0,60 | G77: 520 | H77: =E77*1000 -> 510 | I77: =F77*1000 -> 600
A78: Sulawesi Barat | B78: 0,95 | C78: Sulawesi Tengah | D78: 0,51 | E78: 0,51 | F78: 0,56 | G78: 510 | H78: =E78*1000 -> 510 | I78: =F78*1000 -> 560
A79: Sulawesi Utara | B79: 0,78 | C79: Sulawesi Tengah | D79: 0,59 | E79: 0,59 | F79: 0,63 | G79: 590 | H79: =E79*1000 -> 590 | I79: =F79*1000 -> 630
A80: Gorontalo | B80: 0,78 | C80: Maluku Utara | D80: 0,71 | E80: 0,70 | F80: 0,77 | G80: =D80*1000 -> 710 | H80: =E80*1000 -> 700 | I80: =F80*1000 -> 770
A81: Aceh | B81: 0,94 | C81: Kalimantan Timur | D81: 0,71 | E81: 0,71 | F81: 0,78 | G81: 710 | H81: 710 | I81: 780
A82: Bengkulu | B82: 0,94 | C82: Sulawesi Utara | D82: 0,67 | E82: 0,67 | F82: 0,74 | G82: 670 | H82: 670 | I82: 740
A83: Jambi | B83: 0,94 | C83: Maluku | D83: 0,56 | E83: 0,56 | F83: 0,60 | G83: 560 | H83: 560 | I83: 600
A84: Lampung | B84: 0,94 | C84: Maluku Utara | D84: 0,73 | E84: 0,95 | F84: 0,95 | G84: 730 | H84: 950 | I84: 950
A85: Riau | B85: 0,94 | C85: Sulawesi Utara | D85: 0,73 | E85: 0,95 | F85: 0,95 | G85: 730 | H85: 950 | I85: 950
A86: Sumatera Barat | B86: 0,94 | C86: Nusa Tenggara Timur | D86: 0,67 | E86: 0,78 | F86: 0,78 | G86: 670 | H86: 780 | I86: 780
A87: Sumatera Selatan | B87: 0,94 | C87: Papua Barat | D87: 0,77 | E87: 0,94 | F87: 0,93 | G87: 770 | H87: 940 | I87: 930
A88: Sumatera Utara | B88: 0,94 | C88: Sulawesi Utara | D88: 0,77 | E88: 0,94 | F88: 0,93 | G88: 770 | H88: 940 | I88: 930
A89: Sumbawa - NTB | B89: 0,70 | C89: Sulawesi Utara | D89: 0,77 | E89: 0,94 | F89: 0,93 | G89: 770 | H89: 940 | I89: 930
A90: Tagulandang - SulUt | B90: 0,55 | C90: Maluku | D90: 0,69 | E90: 0,70 | F90: 0,70 | G90: 690 | H90: 700 | I90: 700
A91: Tahuna - Sulawesi Utara | B91: 0,58 | C91: Nusa Tenggara Timur | D91: 0,55 | E91: 0,55 | F91: N/A | G91: 550 | H91: =E91*1000 -> 550 | I91: 0
A92: Tambelan - Kepulauan Riau | B92: 0,65 | C92: Papua | D92: 0,58 | E92: 0,58 | F92: N/A | G92: 580 | H92: 580 | I92: 0
A93: Taniwel - Maluku | B93: 0,58 | C93: Sulawesi Utara | D93: 0,65 | E93: 0,65 | F93: N/A | G93: 650 | H93: 650 | I93: 0
A94: Tanjung Balai Karimun | B94: 0,84 | C94: Kepulauan Riau | D94: 0,58 | E94: 0,58 | F94: 0,61 | G94: 580 | H94: 580 | I94: =F94*1000 -> 610
A95: Tanjung Batu - Kep. Riau | B95: 0,50 | C95: Maluku | D95: 1,19 | E95: 0,84 | F95: 0,87 | G95: 1190 | H95: 840 | I95: =F95*1000 -> 870
A96: Tanjung Samak - Riau | B96: 0,56 | C96: Kepulauan Riau | D96: 0,51 | E96: 0,50 | F96: N/A | G96: 510 | H96: 500 | I96: 0
A97: Tarakan - Kalimantan Utara | B97: 0,48 | C97: Bengkulu | D97: 0,56 | E97: 0,56 | F97: 0,60 | G97: 560 | H97: 560 | I97: =F97*1000 -> 600
A98: Tehoru - Maluku | B98: 0,64 | C98: Papua | D98: 0,29 | E98: 0,48 | F98: 0,59 | G98: 290 | H98: 480 | I98: =F98*1000 -> 590
A99: Teluk Ketapang - Riau | B99: 0,76 | C99: Maluku | D99: 0,65 | E99: 0,64 | F99: 0,70 | G99: 650 | H99: =E99*1000 -> 640 | I99: =F99*1000 -> 700
A100: Ternate -Tidore | B100: 0,48 | C100: Maluku | D100: 0,77 | E100: 0,76 | F100: 0,75 | G100: 770 | H100: =E100*1000 -> 760 | I100: =F100*1000 -> 750
A101: Timika - Papua | B101: 0,57 | C101: Sulawesi Utara | D101: 0,42 | E101: 0,48 | F101: 0,62 | G101: 420 | H101: =E101*1000 -> 480 | I101: =F101*1000 -> 620
A102: Timor - NTT | B102: 0,69 | C102: Sumatera Utara | D102: 0,57 | E102: 0,57 | F102: 0,61 | G102: 570 | H102: 570 | I102: 610
A103: Tobelo - Maluku Utara | B103: 0,59 | C103: Maluku | D103: 0,79 | E103: 0,69 | F103: 0,70 | G103: 790 | H103: 690 | I103: 700
A104: Toili - Sulawesi Tengah | B104: 0,60 | C104: Sumatera Barat | D104: 0,59 | E104: 0,59 | F104: 0,59 | G104: 590 | H104: 590 | I104: 590
A105: Toli-Toli - Sulawesi Tengah | B105: 0,50 | C105: Sulawesi Tengah | D105: 0,61 | E105: 0,60 | F105: 0,67 | G105: 610 | H105: 600 | I105: 670
A106: Tual - Maluku | B106: 0,58 | C106: Sulawesi Tengah | D106: 0,48 | E106: 0,50 | F106: 0,51 | G106: 480 | H106: 500 | I106: 510
A107: Wahai - Maluku | B107: 0,63 | C107: Maluku | D107: 0,58 | E107: 0,58 | F107: 0,58 | G107: 580 | H107: 580 | I107: 580
A108: Waingapu - NTT | B108: 0,55 | C108: Kepulauan Riau | D108: 0,63 | E108: 0,63 | F108: 0,69 | G108: =D108*1000 -> 630 | H108: 630 | I108: 690
A109: Wakai - Sulawesi Tengah | B109: 0,72 | C109: Maluku | D109: 0,54 | E109: 0,55 | F109: 0,60 | G109: 540 | H109: 550 | I109: 600
A110: Wangi-Wangi - SulTra | B110: 0,51 | C110: Maluku | D110: 0,71 | E110: 0,72 | F110: 0,72 | G110: 710 | H110: 720 | I110: 720
A111: Werinama - Maluku | B111: 0,67 | C111: Maluku | D111: 0,52 | E111: 0,51 | F111: 0,55 | G111: 520 | H111: 510 | I111: 550

Sheet Nilai Kalor_NCV (hidden)
A1: Jenis Bahan Bakar | B1: Nilai Kalor (TJ/unit) | C1: Penggunaan
A2: Premium (liter) | B2: 3.3e-05 | C2: Kendaraan Bermotor
A3: Pertamax (liter) | B3: 3.3e-05 | C3: Kendaraan Bermotor
A4: Pertamax Plus (liter) | B4: 3.3e-05 | C4: Kendaraan Bermotor
A5: Solar (HSD, ADO) (liter) | B5: 3.6e-05 | C5: Kendaraan Bermotor, Pembangkit
A6: Minyak Diesel (IDO) (liter) | B6: 3.8e-05 | C6: Boiler Industri
A7: Marine Fuel Oil (liter) | B7: 4e-05 | C7: Pembangkit Listrik
A8: Marine Fuel Oil (ton) | B8: 0.0404 | C8: Pembangkit Listrik
A9: Gas Bumi (SCF) | B9: 1.055e-06 | C9: Industri, rumah tangga, restoran
A10: Gas Bumi (Nm3) | B10: 3.85e-05 | C10: Industri, rumah tangga, restoran
A11: LPG (kg) | B11: 4.73e-05 | C11: Rumah tangga, restoran
A12: Batubara (ton) | B12: 0.0189 | C12: Pembangkit Listrik, Industri

Sheet Density (hidden)
A1: Jenis Bahan Bakar | B1: Density (kg/m3) | C1: Density (kg/l)
A2: Minyak Mentah | B2: 840 | C2: 0.84
A3: Orimulsion | B3: 1200 | C3: 1.2
A4: LNG/CNG | B4: 468.1 | C4: 0.4681
A5: Premium | B5: 780 | C5: 0.78
A6: Pertalite | B6: 780 | C6: 0.78
A7: Pertamax | B7: 780 | C7: 0.78
A8: Pertamax Plus/Turbo | B8: 780 | C8: 0.78
A9: Avgas | B9: 721 | C9: 0.721
A10: Avtur | B10: 810 | C10: 0.81
A11: Kerosin Jet | B11: =1615/2 -> 807.5 | C11: 0.8075
A12: Kerosin Lain | B12: 786 | C12: 0.786
A13: Shale oil | B13: 872.1 | C13: 0.8721
A14: Solar | B14: 832 | C14: 0.832
A15: Residu | B15: 991 | C15: 0.991
A16: LPG | B16: 540 | C16: 0.54
A17: Ethana | B17: 1178 | C17: 1.219
A18: Nafta | B18: 770 | C18: 0.77
A19: Bitumen | B19: 1013 | C19: 1.013
A20: Pelumas | B20: 800 | C20: 0.8
A21: Kokas | B21: 2230 | C21: 2.23
A22: Refinery feedstock | B22: 840 | C22: 0.84
A23: Refinery gas | B23: 525 | C23: 0.525
A24: Parafin | B24: 916 | C24: 0.916
A25: Solvent | B25: 790 | C25: 0.79
A26: Antrasit | B26: 1506 | C26: 1.506
A27: Arang Kokas | C27: 0
A28: Batubara Bitumen | C28: 0
A29: Batubara Sub-bitumen | C29: 0
A30: Lignit | C30: 0
A31: Bubuk Tar | C31: 0
A32: Briket Batubara | C32: 0
A33: Kokas Lignit | C33: 0
A34: Kokas Gas | C34: 0
A35: Tar Batubara | C35: 0
A36: Gas Works Gas | C36: 0
A37: Coke Oven Gas | C37: 0
A38: Blast Furnace Gas | C38: 0
A39: Oxygen Steel Furnace Gas | C39: 0
A40: Gas Alam | C40: 0
A41: Limbah Kota | C41: 0
A42: Minyak Limbah | B42: 835 | C42: 0.835
A43: Biodiesel | B43: 875 | C43: 0.875
A44: Biogasoline | B44: 875 | C44: 0.875
A45: Landfill Gas | C45: 0
A46: Sludge Gas | C46: 0
A47: Biogas Lainnya | C47: 0
A49: Biomass
A50: Gambut | B50: 1400 | C50: 1.4
A51: Kayu/Limbah Kayu | C51: 0
A52: Arang Kayu | C52: 0
A53: Biomass padat lain | C53: 0
A54: Liquor Hitam | C54: 0

Sheet Nilai Kalor_NCV kg (hidden)
A1: Jenis Bahan Bakar | B1: Nilai Kalor (TJ/kg)
A2: Minyak Mentah | B2: =42.3/1000000 -> 4.23e-05
A3: Orimulsion | B3: =27.5/1000000 -> 2.75e-05
A4: LNG/CNG | B4: =44.2/1000000 -> 4.42e-05
A5: Premium | B5: =44.3/1000000 -> 4.43e-05
A6: Pertalite | B6: =44.3/1000000 -> 4.43e-05
A7: Pertamax | B7: =44.3/1000000 -> 4.43e-05
A8: Pertamax Plus/Turbo | B8: 4.43e-05
A9: Avgas | B9: =44.3/1000000 -> 4.43e-05
A10: Avtur | B10: =44.3/1000000 -> 4.43e-05
A11: Kerosin Jet | B11: 4.41e-05
A12: Kerosin Lain | B12: =43.8/1000000 -> 4.38e-05
A13: Shale oil | B13: =38.1/1000000 -> 3.81e-05
A14: Solar | B14: =43/1000000 -> 4.3e-05
A15: Residu | B15: =40.4/1000000 -> 4.04e-05
A16: LPG | B16: =47.3/1000000 -> 4.73e-05
A17: Ethana | B17: =46.4/1000000 -> 4.64e-05
A18: Nafta | B18: =44.5/1000000 -> 4.45e-05
A19: Bitumen | B19: =40.2/1000000 -> 4.02e-05
A20: Pelumas | B20: =40.2/1000000 -> 4.02e-05
A21: Kokas | B21: =32.5/1000000 -> 3.25e-05
A22: Refinery feedstock | B22: =43/1000000 -> 4.3e-05
A23: Refinery gas | B23: =49.5/1000000 -> 4.95e-05
A24: Parafin | B24: =40.2/1000000 -> 4.02e-05
A25: Solvent | B25: =40.2/1000000 -> 4.02e-05
A26: Antrasit | B26: =26.7/1000000 -> 2.67e-05
A27: Arang Kokas | B27: =28.2/1000000 -> 2.82e-05
A28: Batubara Bitumen | B28: =25.8/1000000 -> 2.58e-05
A29: Batubara Sub-bitumen | B29: =18.9/1000000 -> 1.89e-05
A30: Lignit | B30: =11.9/1000000 -> 1.19e-05
A31: Bubuk Tar | B31: =8.9/1000000 -> 8.9e-06
A32: Briket Batubara | B32: =20.7/1000000 -> 2.07e-05
A33: Kokas Lignit | B33: =28.2/1000000 -> 2.82e-05
A34: Kokas Gas | B34: =28.2/1000000 -> 2.82e-05
A35: Tar Batubara | B35: =28/1000000 -> 2.8e-05
A36: Gas Works Gas | B36: =38.7/1000000 -> 3.87e-05
A37: Coke Oven Gas | B37: =38.7/1000000 -> 3.87e-05
A38: Blast Furnace Gas | B38: =2.47/1000000 -> 2.47e-06
A39: Oxygen Steel Furnace Gas | B39: =7.06/1000000 -> 7.06e-06
A40: Gas Alam | B40: =48/1000000 -> 4.8e-05
A41: Limbah Kota | B41: =10/1000000 -> 1e-05
A42: Minyak Limbah | B42: =40.2/1000000 -> 4.02e-05
A43: Biodiesel | B43: =27/1000000 -> 2.7e-05
A44: Biogasoline | B44: =27/1000000 -> 2.7e-05
A45: Landfill Gas | B45: =50.4/1000000 -> 5.04e-05
A46: Sludge Gas | B46: =50.4/1000000 -> 5.04e-05
A47: Biogas Lainnya | B47: =50.4/1000000 -> 5.04e-05
A48: Gambut | B48: =9.76/1000000 -> 9.76e-06
A49: Kayu/Limbah Kayu | B49: =15.6/1000000 -> 1.56e-05
A50: Arang Kayu | B50: =29.5/1000000 -> 2.95e-05
A51: Biomass padat lain | B51: =11.6/1000000 -> 1.16e-05
A52: Liquor Hitam | B52: =11.8/1000000 -> 1.18e-05

Sheet List Kota (hidden)
A1: Sumber Energi | H1: =COUNTIF($I:$I,"?*") -> 1
A2: Bahan Bakar Fossil | F2: =IF(ISNUMBER(SEARCH('UI Tenaga Listrik'!$E$7,'List Kota'!G2)),MAX($F$1:F1)+1,0) -> 0 | G2: Adonara - NTT | H2: =OFFSET($I$2,0,0,COUNTIF(I:I,"?*"),1) -> Lambuya - Sulawesi Tenggara | I2: =IFERROR(VLOOKUP(ROWS($I$1:I1),$F$2:$G$109,2,FALSE),"") -> Lambuya - Sulawesi Tenggara
A3: Biomassa | F3: =IF(ISNUMBER(SEARCH('UI Tenaga Listrik'!$E$7,'List Kota'!G3)),MAX($F$1:F2)+1,0) -> 0 | G3: Alor - NTT | I3: =IFERROR(VLOOKUP(ROWS($I$1:I2),$F$2:$G$110,2,FALSE),"") -> 
A4: Tenaga Listrik | F4: =IF(ISNUMBER(SEARCH('UI Tenaga Listrik'!$E$7,'List Kota'!G4)),MAX($F$1:F3)+1,0) -> 0 | G4: Ambon - Maluku | I4: =IFERROR(VLOOKUP(ROWS($I$1:I3),$F$2:$G$110,2,FALSE),"") -> 
F5: =IF(ISNUMBER(SEARCH('UI Tenaga Listrik'!$E$7,'List Kota'!G5)),MAX($F$1:F4)+1,0) -> 0 | G5: Bangka - Bangka Belitung | I5: =IFERROR(VLOOKUP(ROWS($I$1:I4),$F$2:$G$110,2,FALSE),"") -> 
A6: Tipe Equipment | F6: =IF(ISNUMBER(SEARCH('UI Tenaga Listrik'!$E$7,'List Kota'!G6)),MAX($F$1:F5)+1,0) -> 0 | G6: Barito - Kalimantan Tengah | I6: =IFERROR(VLOOKUP(ROWS($I$1:I5),$F$2:$G$110,2,FALSE),"") -> 
A7: Tak Bergerak | F7: =IF(ISNUMBER(SEARCH('UI Tenaga Listrik'!$E$7,'List Kota'!G7)),MAX($F$1:F6)+1,0) -> 0 | G7: Batam - Kep. Riau | I7: =IFERROR(VLOOKUP(ROWS($I$1:I6),$F$2:$G$110,2,FALSE),"") -> 
A8: Bergerak | F8: =IF(ISNUMBER(SEARCH('UI Tenaga Listrik'!$E$7,'List Kota'!G8)),MAX($F$1:F7)+1,0) -> 0 | G8: Bau-Bau - Sulawesi Tenggara | I8: =IFERROR(VLOOKUP(ROWS($I$1:I7),$F$2:$G$110,2,FALSE),"") -> 
F9: =IF(ISNUMBER(SEARCH('UI Tenaga Listrik'!$E$7,'List Kota'!G9)),MAX($F$1:F8)+1,0) -> 0 | G9: Belitung - Bangka Belitung | I9: =IFERROR(VLOOKUP(ROWS($I$1:I8),$F$2:$G$110,2,FALSE),"") -> 
A10: liter | F10: =IF(ISNUMBER(SEARCH('UI Tenaga Listrik'!$E$7,'List Kota'!G10)),MAX($F$1:F9)+1,0) -> 0 | G10: Bengkalis - Riau | I10: =IFERROR(VLOOKUP(ROWS($I$1:I9),$F$2:$G$110,2,FALSE),"") -> 
A11: kilogram | F11: =IF(ISNUMBER(SEARCH('UI Tenaga Listrik'!$E$7,'List Kota'!G11)),MAX($F$1:F10)+1,0) -> 0 | G11: Biak - Papua | I11: =IFERROR(VLOOKUP(ROWS($I$1:I10),$F$2:$G$110,2,FALSE),"") -> 
F12: =IF(ISNUMBER(SEARCH('UI Tenaga Listrik'!$E$7,'List Kota'!G12)),MAX($F$1:F11)+1,0) -> 0 | G12: Bima - NTB | I12: =IFERROR(VLOOKUP(ROWS($I$1:I11),$F$2:$G$110,2,FALSE),"") -> 
F13: =IF(ISNUMBER(SEARCH('UI Tenaga Listrik'!$E$7,'List Kota'!G13)),MAX($F$1:F12)+1,0) -> 0 | G13: Bualemo - Sulawesi Tengah | I13: =IFERROR(VLOOKUP(ROWS($I$1:I12),$F$2:$G$110,2,FALSE),"") -> 
F14: =IF(ISNUMBER(SEARCH('UI Tenaga Listrik'!$E$7,'List Kota'!G14)),MAX($F$1:F13)+1,0) -> 0 | G14: Buano - Maluku | I14: =IFERROR(VLOOKUP(ROWS($I$1:I13),$F$2:$G$110,2,FALSE),"") -> 
F15: =IF(ISNUMBER(SEARCH('UI Tenaga Listrik'!$E$7,'List Kota'!G15)),MAX($F$1:F14)+1,0) -> 0 | G15: Buli - Maluku Utara | I15: =IFERROR(VLOOKUP(ROWS($I$1:I14),$F$2:$G$110,2,FALSE),"") -> 
F16: =IF(ISNUMBER(SEARCH('UI Tenaga Listrik'!$E$7,'List Kota'!G16)),MAX($F$1:F15)+1,0) -> 0 | G16: Concong Luar - Riau | I16: =IFERROR(VLOOKUP(ROWS($I$1:I15),$F$2:$G$110,2,FALSE),"") -> 
F17: =IF(ISNUMBER(SEARCH('UI Tenaga Listrik'!$E$7,'List Kota'!G17)),MAX($F$1:F16)+1,0) -> 0 | G17: Dabo Singkep - Kep.Riau | I17: =IFERROR(VLOOKUP(ROWS($I$1:I16),$F$2:$G$110,2,FALSE),"") -> 
F18: =IF(ISNUMBER(SEARCH('UI Tenaga Listrik'!$E$7,'List Kota'!G18)),MAX($F$1:F17)+1,0) -> 0 | G18: Daruba - Maluku Utara | I18: =IFERROR(VLOOKUP(ROWS($I$1:I17),$F$2:$G$110,2,FALSE),"") -> 
F19: =IF(ISNUMBER(SEARCH('UI Tenaga Listrik'!$E$7,'List Kota'!G19)),MAX($F$1:F18)+1,0) -> 0 | G19: Dobo - Maluku | I19: =IFERROR(VLOOKUP(ROWS($I$1:I18),$F$2:$G$110,2,FALSE),"") -> 
F20: =IF(ISNUMBER(SEARCH('UI Tenaga Listrik'!$E$7,'List Kota'!G20)),MAX($F$1:F19)+1,0) -> 0 | G20: Ende - NTT | I20: =IFERROR(VLOOKUP(ROWS($I$1:I19),$F$2:$G$110,2,FALSE),"") -> 
F21: =IF(ISNUMBER(SEARCH('UI Tenaga Listrik'!$E$7,'List Kota'!G21)),MAX($F$1:F20)+1,0) -> 0 | G21: Ibu - Maluku Utara | I21: =IFERROR(VLOOKUP(ROWS($I$1:I20),$F$2:$G$110,2,FALSE),"") -> 
F22: =IF(ISNUMBER(SEARCH('UI Tenaga Listrik'!$E$7,'List Kota'!G22)),MAX($F$1:F21)+1,0) -> 0 | G22: Ipuh - Bengkulu | I22: =IFERROR(VLOOKUP(ROWS($I$1:I21),$F$2:$G$110,2,FALSE),"") -> 
F23: =IF(ISNUMBER(SEARCH('UI Tenaga Listrik'!$E$7,'List Kota'!G23)),MAX($F$1:F22)+1,0) -> 0 | G23: Banten | I23: =IFERROR(VLOOKUP(ROWS($I$1:I22),$F$2:$G$110,2,FALSE),"") -> 
F24: =IF(ISNUMBER(SEARCH('UI Tenaga Listrik'!$E$7,'List Kota'!G24)),MAX($F$1:F23)+1,0) -> 0 | G24: DKI Jakarta | I24: =IFERROR(VLOOKUP(ROWS($I$1:I23),$F$2:$G$110,2,FALSE),"") -> 
F25: =IF(ISNUMBER(SEARCH('UI Tenaga Listrik'!$E$7,'List Kota'!G25)),MAX($F$1:F24)+1,0) -> 0 | G25: Jawa Barat | I25: =IFERROR(VLOOKUP(ROWS($I$1:I24),$F$2:$G$110,2,FALSE),"") -> 
F26: =IF(ISNUMBER(SEARCH('UI Tenaga Listrik'!$E$7,'List Kota'!G26)),MAX($F$1:F25)+1,0) -> 0 | G26: Jawa Tengah | I26: =IFERROR(VLOOKUP(ROWS($I$1:I25),$F$2:$G$110,2,FALSE),"") -> 
F27: =IF(ISNUMBER(SEARCH('UI Tenaga Listrik'!$E$7,'List Kota'!G27)),MAX($F$1:F26)+1,0) -> 0 | G27: DI Yogyakarta | I27: =IFERROR(VLOOKUP(ROWS($I$1:I26),$F$2:$G$110,2,FALSE),"") -> 
F28: =IF(ISNUMBER(SEARCH('UI Tenaga Listrik'!$E$7,'List Kota'!G28)),MAX($F$1:F27)+1,0) -> 0 | G28: Jawa Timur | I28: =IFERROR(VLOOKUP(ROWS($I$1:I27),$F$2:$G$110,2,FALSE),"") -> 
F29: =IF(ISNUMBER(SEARCH('UI Tenaga Listrik'!$E$7,'List Kota'!G29)),MAX($F$1:F28)+1,0) -> 0 | G29: Jayapura - Papua | I29: =IFERROR(VLOOKUP(ROWS($I$1:I28),$F$2:$G$110,2,FALSE),"") -> 
F30: =IF(ISNUMBER(SEARCH('UI Tenaga Listrik'!$E$7,'List Kota'!G30)),MAX($F$1:F29)+1,0) -> 0 | G30: Karakelang - Sulawesi Utara | I30: =IFERROR(VLOOKUP(ROWS($I$1:I29),$F$2:$G$110,2,FALSE),"") -> 
F31: =IF(ISNUMBER(SEARCH('UI Tenaga Listrik'!$E$7,'List Kota'!G31)),MAX($F$1:F30)+1,0) -> 0 | G31: Kendari - Sulawesi Tenggara | I31: =IFERROR(VLOOKUP(ROWS($I$1:I30),$F$2:$G$110,2,FALSE),"") -> 
F32: =IF(ISNUMBER(SEARCH('UI Tenaga Listrik'!$E$7,'List Kota'!G32)),MAX($F$1:F31)+1,0) -> 0 | G32: Kesui - Maluku | I32: =IFERROR(VLOOKUP(ROWS($I$1:I31),$F$2:$G$110,2,FALSE),"") -> 
F33: =IF(ISNUMBER(SEARCH('UI Tenaga Listrik'!$E$7,'List Kota'!G33)),MAX($F$1:F32)+1,0) -> 0 | G33: Pontianak - KalBar | I33: =IFERROR(VLOOKUP(ROWS($I$1:I32),$F$2:$G$110,2,FALSE),"") -> 
F34: =IF(ISNUMBER(SEARCH('UI Tenaga Listrik'!$E$7,'List Kota'!G34)),MAX($F$1:F33)+1,0) -> 0 | G34: Kian Darat - Maluku | I34: =IFERROR(VLOOKUP(ROWS($I$1:I33),$F$2:$G$110,2,FALSE),"") -> 
F35: =IF(ISNUMBER(SEARCH('UI Tenaga Listrik'!$E$7,'List Kota'!G35)),MAX($F$1:F34)+1,0) -> 0 | G35: Kisar - Maluku | I35: =IFERROR(VLOOKUP(ROWS($I$1:I34),$F$2:$G$110,2,FALSE),"") -> 
F36: =IF(ISNUMBER(SEARCH('UI Tenaga Listrik'!$E$7,'List Kota'!G36)),MAX($F$1:F35)+1,0) -> 0 | G36: Kobisonta - Maluku | I36: =IFERROR(VLOOKUP(ROWS($I$1:I35),$F$2:$G$110,2,FALSE),"") -> 
F37: =IF(ISNUMBER(SEARCH('UI Tenaga Listrik'!$E$7,'List Kota'!G37)),MAX($F$1:F36)+1,0) -> 0 | G37: Kolaka - Sulawesi Tenggara | I37: =IFERROR(VLOOKUP(ROWS($I$1:I36),$F$2:$G$110,2,FALSE),"") -> 
F38: =IF(ISNUMBER(SEARCH('UI Tenaga Listrik'!$E$7,'List Kota'!G38)),MAX($F$1:F37)+1,0) -> 0 | G38: Kota Bani - Bengkulu | I38: =IFERROR(VLOOKUP(ROWS($I$1:I37),$F$2:$G$110,2,FALSE),"") -> 
F39: =IF(ISNUMBER(SEARCH('UI Tenaga Listrik'!$E$7,'List Kota'!G39)),MAX($F$1:F38)+1,0) -> 0 | G39: Kota Lama - Riau | I39: =IFERROR(VLOOKUP(ROWS($I$1:I38),$F$2:$G$110,2,FALSE),"") -> 
F40: =IF(ISNUMBER(SEARCH('UI Tenaga Listrik'!$E$7,'List Kota'!G40)),MAX($F$1:F39)+1,0) -> 0 | G40: Kotaraya - Sulawesi Tengah | I40: =IFERROR(VLOOKUP(ROWS($I$1:I39),$F$2:$G$110,2,FALSE),"") -> 
F41: =IF(ISNUMBER(SEARCH('UI Tenaga Listrik'!$E$7,'List Kota'!G41)),MAX($F$1:F40)+1,0) -> 0 | G41: Ladan - Kep. Riau | I41: =IFERROR(VLOOKUP(ROWS($I$1:I40),$F$2:$G$110,2,FALSE),"") -> 
F42: =IF(ISNUMBER(SEARCH('UI Tenaga Listrik'!$E$7,'List Kota'!G42)),MAX($F$1:F41)+1,0) -> 0 | G42: Laimu - Maluku | I42: =IFERROR(VLOOKUP(ROWS($I$1:I41),$F$2:$G$110,2,FALSE),"") -> 
F43: =IF(ISNUMBER(SEARCH('UI Tenaga Listrik'!$E$7,'List Kota'!G43)),MAX($F$1:F42)+1,0) -> 1 | G43: Lambuya - Sulawesi Tenggara | I43: =IFERROR(VLOOKUP(ROWS($I$1:I42),$F$2:$G$110,2,FALSE),"") -> 
F44: =IF(ISNUMBER(SEARCH('UI Tenaga Listrik'!$E$7,'List Kota'!G44)),MAX($F$1:F43)+1,0) -> 0 | G44: Lelang - Sulawesi Tengah | I44: =IFERROR(VLOOKUP(ROWS($I$1:I43),$F$2:$G$110,2,FALSE),"") -> 
F45: =IF(ISNUMBER(SEARCH('UI Tenaga Listrik'!$E$7,'List Kota'!G45)),MAX($F$1:F44)+1,0) -> 0 | G45: Lemang - Riau | I45: =IFERROR(VLOOKUP(ROWS($I$1:I44),$F$2:$G$110,2,FALSE),"") -> 
F46: =IF(ISNUMBER(SEARCH('UI Tenaga Listrik'!$E$7,'List Kota'!G46)),MAX($F$1:F45)+1,0) -> 0 | G46: Letung - Kepulauan Riau | I46: =IFERROR(VLOOKUP(ROWS($I$1:I45),$F$2:$G$110,2,FALSE),"") -> 
F47: =IF(ISNUMBER(SEARCH('UI Tenaga Listrik'!$E$7,'List Kota'!G47)),MAX($F$1:F46)+1,0) -> 0 | G47: Lirung - Sulawesi Utara | I47: =IFERROR(VLOOKUP(ROWS($I$1:I46),$F$2:$G$110,2,FALSE),"") -> 
F48: =IF(ISNUMBER(SEARCH('UI Tenaga Listrik'!$E$7,'List Kota'!G48)),MAX($F$1:F47)+1,0) -> 0 | G48: Lombok - NTB | I48: =IFERROR(VLOOKUP(ROWS($I$1:I47),$F$2:$G$110,2,FALSE),"") -> 
F49: =IF(ISNUMBER(SEARCH('UI Tenaga Listrik'!$E$7,'List Kota'!G49)),MAX($F$1:F48)+1,0) -> 0 | G49: Lumbi-lumbia - SulTeng | I49: =IFERROR(VLOOKUP(ROWS($I$1:I48),$F$2:$G$110,2,FALSE),"") -> 
F50: =IF(ISNUMBER(SEARCH('UI Tenaga Listrik'!$E$7,'List Kota'!G50)),MAX($F$1:F49)+1,0) -> 0 | G50: Luwuk - Sulawesi Tengah | I50: =IFERROR(VLOOKUP(ROWS($I$1:I49),$F$2:$G$110,2,FALSE),"") -> 
F51: =IF(ISNUMBER(SEARCH('UI Tenaga Listrik'!$E$7,'List Kota'!G51)),MAX($F$1:F50)+1,0) -> 0 | G51: Mahakam - Kalimantan Timur | I51: =IFERROR(VLOOKUP(ROWS($I$1:I50),$F$2:$G$110,2,FALSE),"") -> 
F52: =IF(ISNUMBER(SEARCH('UI Tenaga Listrik'!$E$7,'List Kota'!G52)),MAX($F$1:F51)+1,0) -> 0 | G52: Mangaran - Sulawesi Utara | I52: =IFERROR(VLOOKUP(ROWS($I$1:I51),$F$2:$G$110,2,FALSE),"") -> 
F53: =IF(ISNUMBER(SEARCH('UI Tenaga Listrik'!$E$7,'List Kota'!G53)),MAX($F$1:F52)+1,0) -> 0 | G53: Manokwari - Papua Barat | I53: =IFERROR(VLOOKUP(ROWS($I$1:I52),$F$2:$G$110,2,FALSE),"") -> 
F54: =IF(ISNUMBER(SEARCH('UI Tenaga Listrik'!$E$7,'List Kota'!G54)),MAX($F$1:F53)+1,0) -> 0 | G54: Maumere - NTT | I54: =IFERROR(VLOOKUP(ROWS($I$1:I53),$F$2:$G$110,2,FALSE),"") -> 
F55: =IF(ISNUMBER(SEARCH('UI Tenaga Listrik'!$E$7,'List Kota'!G55)),MAX($F$1:F54)+1,0) -> 0 | G55: Merauke - Papua | I55: =IFERROR(VLOOKUP(ROWS($I$1:I54),$F$2:$G$110,2,FALSE),"") -> 
F56: =IF(ISNUMBER(SEARCH('UI Tenaga Listrik'!$E$7,'List Kota'!G56)),MAX($F$1:F55)+1,0) -> 0 | G56: Moa - Maluku | I56: =IFERROR(VLOOKUP(ROWS($I$1:I55),$F$2:$G$110,2,FALSE),"") -> 
F57: =IF(ISNUMBER(SEARCH('UI Tenaga Listrik'!$E$7,'List Kota'!G57)),MAX($F$1:F56)+1,0) -> 0 | G57: Nabire - Papua | I57: =IFERROR(VLOOKUP(ROWS($I$1:I56),$F$2:$G$110,2,FALSE),"") -> 
F58: =IF(ISNUMBER(SEARCH('UI Tenaga Listrik'!$E$7,'List Kota'!G58)),MAX($F$1:F57)+1,0) -> 0 | G58: Namlea - Maluku | I58: =IFERROR(VLOOKUP(ROWS($I$1:I57),$F$2:$G$110,2,FALSE),"") -> 
F59: =IF(ISNUMBER(SEARCH('UI Tenaga Listrik'!$E$7,'List Kota'!G59)),MAX($F$1:F58)+1,0) -> 0 | G59: Nias - Sumatera Utara | I59: =IFERROR(VLOOKUP(ROWS($I$1:I58),$F$2:$G$110,2,FALSE),"") -> 
F60: =IF(ISNUMBER(SEARCH('UI Tenaga Listrik'!$E$7,'List Kota'!G60)),MAX($F$1:F59)+1,0) -> 0 | G60: Pagai Selatan - Sum. Barat | I60: =IFERROR(VLOOKUP(ROWS($I$1:I59),$F$2:$G$110,2,FALSE),"") -> 
F61: =IF(ISNUMBER(SEARCH('UI Tenaga Listrik'!$E$7,'List Kota'!G61)),MAX($F$1:F60)+1,0) -> 0 | G61: Palu - Sulawesi Tengah | I61: =IFERROR(VLOOKUP(ROWS($I$1:I60),$F$2:$G$110,2,FALSE),"") -> 
F62: =IF(ISNUMBER(SEARCH('UI Tenaga Listrik'!$E$7,'List Kota'!G62)),MAX($F$1:F61)+1,0) -> 0 | G62: Pulau Buru - Maluku | I62: =IFERROR(VLOOKUP(ROWS($I$1:I61),$F$2:$G$110,2,FALSE),"") -> 
F63: =IF(ISNUMBER(SEARCH('UI Tenaga Listrik'!$E$7,'List Kota'!G63)),MAX($F$1:F62)+1,0) -> 0 | G63: Pulau Halang - Riau | I63: =IFERROR(VLOOKUP(ROWS($I$1:I62),$F$2:$G$110,2,FALSE),"") -> 
F64: =IF(ISNUMBER(SEARCH('UI Tenaga Listrik'!$E$7,'List Kota'!G64)),MAX($F$1:F63)+1,0) -> 0 | G64: Pulau Tello - SulSel | I64: =IFERROR(VLOOKUP(ROWS($I$1:I63),$F$2:$G$110,2,FALSE),"") -> 
F65: =IF(ISNUMBER(SEARCH('UI Tenaga Listrik'!$E$7,'List Kota'!G65)),MAX($F$1:F64)+1,0) -> 0 | G65: Raha - Sulawesi Tenggara | I65: =IFERROR(VLOOKUP(ROWS($I$1:I64),$F$2:$G$110,2,FALSE),"") -> 
F66: =IF(ISNUMBER(SEARCH('UI Tenaga Listrik'!$E$7,'List Kota'!G66)),MAX($F$1:F65)+1,0) -> 0 | G66: Ranai - Kepulauan Riau | I66: =IFERROR(VLOOKUP(ROWS($I$1:I65),$F$2:$G$110,2,FALSE),"") -> 
F67: =IF(ISNUMBER(SEARCH('UI Tenaga Listrik'!$E$7,'List Kota'!G67)),MAX($F$1:F66)+1,0) -> 0 | G67: S Nasik - Bangka Belitung | I67: =IFERROR(VLOOKUP(ROWS($I$1:I66),$F$2:$G$110,2,FALSE),"") -> 
F68: =IF(ISNUMBER(SEARCH('UI Tenaga Listrik'!$E$7,'List Kota'!G68)),MAX($F$1:F67)+1,0) -> 0 | G68: Saumlaki - Maluku | I68: =IFERROR(VLOOKUP(ROWS($I$1:I67),$F$2:$G$110,2,FALSE),"") -> 
F69: =IF(ISNUMBER(SEARCH('UI Tenaga Listrik'!$E$7,'List Kota'!G69)),MAX($F$1:F68)+1,0) -> 0 | G69: Selat Panjang - Riau | I69: =IFERROR(VLOOKUP(ROWS($I$1:I68),$F$2:$G$110,2,FALSE),"") -> 
F70: =IF(ISNUMBER(SEARCH('UI Tenaga Listrik'!$E$7,'List Kota'!G70)),MAX($F$1:F69)+1,0) -> 0 | G70: Serui - Papua | I70: =IFERROR(VLOOKUP(ROWS($I$1:I69),$F$2:$G$110,2,FALSE),"") -> 
F71: =IF(ISNUMBER(SEARCH('UI Tenaga Listrik'!$E$7,'List Kota'!G71)),MAX($F$1:F70)+1,0) -> 0 | G71: Siberut - Sumatera Barat | I71: =IFERROR(VLOOKUP(ROWS($I$1:I70),$F$2:$G$110,2,FALSE),"") -> 
F72: =IF(ISNUMBER(SEARCH('UI Tenaga Listrik'!$E$7,'List Kota'!G72)),MAX($F$1:F71)+1,0) -> 0 | G72: Siberut Utara - Sum. Barat | I72: =IFERROR(VLOOKUP(ROWS($I$1:I71),$F$2:$G$110,2,FALSE),"") -> 
F73: =IF(ISNUMBER(SEARCH('UI Tenaga Listrik'!$E$7,'List Kota'!G73)),MAX($F$1:F72)+1,0) -> 0 | G73: Sipora - Sumatera Barat | I73: =IFERROR(VLOOKUP(ROWS($I$1:I72),$F$2:$G$110,2,FALSE),"") -> 
F74: =IF(ISNUMBER(SEARCH('UI Tenaga Listrik'!$E$7,'List Kota'!G74)),MAX($F$1:F73)+1,0) -> 0 | G74: Sorong - Papua Barat | I74: =IFERROR(VLOOKUP(ROWS($I$1:I73),$F$2:$G$110,2,FALSE),"") -> 
F75: =IF(ISNUMBER(SEARCH('UI Tenaga Listrik'!$E$7,'List Kota'!G75)),MAX($F$1:F74)+1,0) -> 0 | G75: Sulawesi Selatan | I75: =IFERROR(VLOOKUP(ROWS($I$1:I74),$F$2:$G$110,2,FALSE),"") -> 
F76: =IF(ISNUMBER(SEARCH('UI Tenaga Listrik'!$E$7,'List Kota'!G76)),MAX($F$1:F75)+1,0) -> 0 | G76: Sulawesi Barat | I76: =IFERROR(VLOOKUP(ROWS($I$1:I75),$F$2:$G$110,2,FALSE),"") -> 
F77: =IF(ISNUMBER(SEARCH('UI Tenaga Listrik'!$E$7,'List Kota'!G77)),MAX($F$1:F76)+1,0) -> 0 | G77: Sulawesi Utara | I77: =IFERROR(VLOOKUP(ROWS($I$1:I76),$F$2:$G$110,2,FALSE),"") -> 
F78: =IF(ISNUMBER(SEARCH('UI Tenaga Listrik'!$E$7,'List Kota'!G78)),MAX($F$1:F77)+1,0) -> 0 | G78: Gorontalo | I78: =IFERROR(VLOOKUP(ROWS($I$1:I77),$F$2:$G$110,2,FALSE),"") -> 
F79: =IF(ISNUMBER(SEARCH('UI Tenaga Listrik'!$E$7,'List Kota'!G79)),MAX($F$1:F78)+1,0) -> 0 | G79: Aceh | I79: =IFERROR(VLOOKUP(ROWS($I$1:I78),$F$2:$G$110,2,FALSE),"") -> 
F80: =IF(ISNUMBER(SEARCH('UI Tenaga Listrik'!$E$7,'List Kota'!G80)),MAX($F$1:F79)+1,0) -> 0 | G80: Bengkulu | I80: =IFERROR(VLOOKUP(ROWS($I$1:I79),$F$2:$G$110,2,FALSE),"") -> 
F81: =IF(ISNUMBER(SEARCH('UI Tenaga Listrik'!$E$7,'List Kota'!G81)),MAX($F$1:F80)+1,0) -> 0 | G81: Jambi | I81: =IFERROR(VLOOKUP(ROWS($I$1:I80),$F$2:$G$110,2,FALSE),"") -> 
F82: =IF(ISNUMBER(SEARCH('UI Tenaga Listrik'!$E$7,'List Kota'!G82)),MAX($F$1:F81)+1,0) -> 0 | G82: Lampung | I82: =IFERROR(VLOOKUP(ROWS($I$1:I81),$F$2:$G$110,2,FALSE),"") -> 
F83: =IF(ISNUMBER(SEARCH('UI Tenaga Listrik'!$E$7,'List Kota'!G83)),MAX($F$1:F82)+1,0) -> 0 | G83: Riau | I83: =IFERROR(VLOOKUP(ROWS($I$1:I82),$F$2:$G$110,2,FALSE),"") -> 
F84: =IF(ISNUMBER(SEARCH('UI Tenaga Listrik'!$E$7,'List Kota'!G84)),MAX($F$1:F83)+1,0) -> 0 | G84: Sumatera Barat | I84: =IFERROR(VLOOKUP(ROWS($I$1:I83),$F$2:$G$110,2,FALSE),"") -> 
F85: =IF(ISNUMBER(SEARCH('UI Tenaga Listrik'!$E$7,'List Kota'!G85)),MAX($F$1:F84)+1,0) -> 0 | G85: Sumatera Selatan | I85: =IFERROR(VLOOKUP(ROWS($I$1:I84),$F$2:$G$110,2,FALSE),"") -> 
F86: =IF(ISNUMBER(SEARCH('UI Tenaga Listrik'!$E$7,'List Kota'!G86)),MAX($F$1:F85)+1,0) -> 0 | G86: Sumatera Utara | I86: =IFERROR(VLOOKUP(ROWS($I$1:I85),$F$2:$G$110,2,FALSE),"") -> 
F87: =IF(ISNUMBER(SEARCH('UI Tenaga Listrik'!$E$7,'List Kota'!G87)),MAX($F$1:F86)+1,0) -> 0 | G87: Sumbawa - NTB | I87: =IFERROR(VLOOKUP(ROWS($I$1:I86),$F$2:$G$110,2,FALSE),"") -> 
F88: =IF(ISNUMBER(SEARCH('UI Tenaga Listrik'!$E$7,'List Kota'!G88)),MAX($F$1:F87)+1,0) -> 0 | G88: Tagulandang - SulUt | I88: =IFERROR(VLOOKUP(ROWS($I$1:I87),$F$2:$G$110,2,FALSE),"") -> 
F89: =IF(ISNUMBER(SEARCH('UI Tenaga Listrik'!$E$7,'List Kota'!G89)),MAX($F$1:F88)+1,0) -> 0 | G89: Tahuna - Sulawesi Utara | I89: =IFERROR(VLOOKUP(ROWS($I$1:I88),$F$2:$G$110,2,FALSE),"") -> 
F90: =IF(ISNUMBER(SEARCH('UI Tenaga Listrik'!$E$7,'List Kota'!G90)),MAX($F$1:F89)+1,0) -> 0 | G90: Tambelan - Kepulauan Riau | I90: =IFERROR(VLOOKUP(ROWS($I$1:I89),$F$2:$G$110,2,FALSE),"") -> 
F91: =IF(ISNUMBER(SEARCH('UI Tenaga Listrik'!$E$7,'List Kota'!G91)),MAX($F$1:F90)+1,0) -> 0 | G91: Taniwel - Maluku | I91: =IFERROR(VLOOKUP(ROWS($I$1:I90),$F$2:$G$110,2,FALSE),"") -> 
F92: =IF(ISNUMBER(SEARCH('UI Tenaga Listrik'!$E$7,'List Kota'!G92)),MAX($F$1:F91)+1,0) -> 0 | G92: Tanjung Balai Karimun | I92: =IFERROR(VLOOKUP(ROWS($I$1:I91),$F$2:$G$110,2,FALSE),"") -> 
F93: =IF(ISNUMBER(SEARCH('UI Tenaga Listrik'!$E$7,'List Kota'!G93)),MAX($F$1:F92)+1,0) -> 0 | G93: Tanjung Batu - Kep. Riau | I93: =IFERROR(VLOOKUP(ROWS($I$1:I92),$F$2:$G$110,2,FALSE),"") -> 
F94: =IF(ISNUMBER(SEARCH('UI Tenaga Listrik'!$E$7,'List Kota'!G94)),MAX($F$1:F93)+1,0) -> 0 | G94: Tanjung Samak - Riau | I94: =IFERROR(VLOOKUP(ROWS($I$1:I93),$F$2:$G$110,2,FALSE),"") -> 
F95: =IF(ISNUMBER(SEARCH('UI Tenaga Listrik'!$E$7,'List Kota'!G95)),MAX($F$1:F94)+1,0) -> 0 | G95: Tarakan - Kalimantan Utara | I95: =IFERROR(VLOOKUP(ROWS($I$1:I94),$F$2:$G$110,2,FALSE),"") -> 
F96: =IF(ISNUMBER(SEARCH('UI Tenaga Listrik'!$E$7,'List Kota'!G96)),MAX($F$1:F95)+1,0) -> 0 | G96: Tehoru - Maluku | I96: =IFERROR(VLOOKUP(ROWS($I$1:I95),$F$2:$G$110,2,FALSE),"") -> 
F97: =IF(ISNUMBER(SEARCH('UI Tenaga Listrik'!$E$7,'List Kota'!G97)),MAX($F$1:F96)+1,0) -> 0 | G97: Teluk Ketapang - Riau | I97: =IFERROR(VLOOKUP(ROWS($I$1:I96),$F$2:$G$110,2,FALSE),"") -> 
F98: =IF(ISNUMBER(SEARCH('UI Tenaga Listrik'!$E$7,'List Kota'!G98)),MAX($F$1:F97)+1,0) -> 0 | G98: Ternate -Tidore | I98: =IFERROR(VLOOKUP(ROWS($I$1:I97),$F$2:$G$110,2,FALSE),"") -> 
F99: =IF(ISNUMBER(SEARCH('UI Tenaga Listrik'!$E$7,'List Kota'!G99)),MAX($F$1:F98)+1,0) -> 0 | G99: Timika - Papua | I99: =IFERROR(VLOOKUP(ROWS($I$1:I98),$F$2:$G$110,2,FALSE),"") -> 
F100: =IF(ISNUMBER(SEARCH('UI Tenaga Listrik'!$E$7,'List Kota'!G100)),MAX($F$1:F99)+1,0) -> 0 | G100: Timor - NTT | I100: =IFERROR(VLOOKUP(ROWS($I$1:I99),$F$2:$G$110,2,FALSE),"") -> 
F101: =IF(ISNUMBER(SEARCH('UI Tenaga Listrik'!$E$7,'List Kota'!G101)),MAX($F$1:F100)+1,0) -> 0 | G101: Tobelo - Maluku Utara | I101: =IFERROR(VLOOKUP(ROWS($I$1:I100),$F$2:$G$110,2,FALSE),"") -> 
F102: =IF(ISNUMBER(SEARCH('UI Tenaga Listrik'!$E$7,'List Kota'!G102)),MAX($F$1:F101)+1,0) -> 0 | G102: Toili - Sulawesi Tengah | I102: =IFERROR(VLOOKUP(ROWS($I$1:I101),$F$2:$G$110,2,FALSE),"") -> 
F103: =IF(ISNUMBER(SEARCH('UI Tenaga Listrik'!$E$7,'List Kota'!G103)),MAX($F$1:F102)+1,0) -> 0 | G103: Toli-Toli - Sulawesi Tengah | I103: =IFERROR(VLOOKUP(ROWS($I$1:I102),$F$2:$G$110,2,FALSE),"") -> 
F104: =IF(ISNUMBER(SEARCH('UI Tenaga Listrik'!$E$7,'List Kota'!G104)),MAX($F$1:F103)+1,0) -> 0 | G104: Tual - Maluku | I104: =IFERROR(VLOOKUP(ROWS($I$1:I103),$F$2:$G$110,2,FALSE),"") -> 
F105: =IF(ISNUMBER(SEARCH('UI Tenaga Listrik'!$E$7,'List Kota'!G105)),MAX($F$1:F104)+1,0) -> 0 | G105: Wahai - Maluku | I105: =IFERROR(VLOOKUP(ROWS($I$1:I104),$F$2:$G$110,2,FALSE),"") -> 
F106: =IF(ISNUMBER(SEARCH('UI Tenaga Listrik'!$E$7,'List Kota'!G106)),MAX($F$1:F105)+1,0) -> 0 | G106: Waingapu - NTT | I106: =IFERROR(VLOOKUP(ROWS($I$1:I105),$F$2:$G$110,2,FALSE),"") -> 
F107: =IF(ISNUMBER(SEARCH('UI Tenaga Listrik'!$E$7,'List Kota'!G107)),MAX($F$1:F106)+1,0) -> 0 | G107: Wakai - Sulawesi Tengah | I107: =IFERROR(VLOOKUP(ROWS($I$1:I106),$F$2:$G$110,2,FALSE),"") -> 
F108: =IF(ISNUMBER(SEARCH('UI Tenaga Listrik'!$E$7,'List Kota'!G108)),MAX($F$1:F107)+1,0) -> 0 | G108: Wangi-Wangi - SulTra | I108: =IFERROR(VLOOKUP(ROWS($I$1:I107),$F$2:$G$110,2,FALSE),"") -> 
F109: =IF(ISNUMBER(SEARCH('UI Tenaga Listrik'!$E$7,'List Kota'!G109)),MAX($F$1:F108)+1,0) -> 0 | G109: Werinama - Maluku | I109: =IFERROR(VLOOKUP(ROWS($I$1:I108),$F$2:$G$110,2,FALSE),"") -> 

Sheet List BBM (hidden)
A1: Energi Bergerak | D1: =COUNTIF(E:E,"?*") -> 18 | I1: Energi Tidak Bergerak | M1: =COUNTIF(N:N,"?*") -> 46
B2: =IF(ISNUMBER(SEARCH('UI Bahan Bakar'!$E$9,'List BBM'!C2)),MAX($B$1:B1,A2)+1,0) -> 1 | C2: LNG/CNG | D2: =OFFSET($E$2,0,0,COUNTIF(E:E,"?*"),1) -> LNG/CNG | E2: =IFERROR(VLOOKUP(ROWS($E$1:E1),$B$2:$C$19,2,FALSE),"") -> LNG/CNG | K2: =IF(ISNUMBER(SEARCH('UI Bahan Bakar'!$E$11,'List BBM'!L2)),MAX($K$1:K1,J2)+1,0) -> 1 | L2: Minyak Mentah | M2: =OFFSET($N$2,0,0,COUNTIF(N:N,"?*"),1) -> Minyak Mentah | N2: =IFERROR(VLOOKUP(ROWS($N$1:N1),$K$2:$L$52,2,FALSE),"") -> Minyak Mentah
B3: =IF(ISNUMBER(SEARCH('UI Bahan Bakar'!$E$9,'List BBM'!C3)),MAX($B$1:B2,A3)+1,0) -> 2 | C3: Premium | E3: =IFERROR(VLOOKUP(ROWS($E$1:E2),$B$2:$C$19,2,FALSE),"") -> Premium | K3: =IF(ISNUMBER(SEARCH('UI Bahan Bakar'!$E$11,'List BBM'!L3)),MAX($K$1:K2,J3)+1,0) -> 2 | L3: Orimulsion | N3: =IFERROR(VLOOKUP(ROWS($N$1:N2),$K$2:$L$52,2,FALSE),"") -> Orimulsion
B4: =IF(ISNUMBER(SEARCH('UI Bahan Bakar'!$E$9,'List BBM'!C4)),MAX($B$1:B3,A4)+1,0) -> 3 | C4: Pertalite | E4: =IFERROR(VLOOKUP(ROWS($E$1:E3),$B$2:$C$19,2,FALSE),"") -> Pertalite | K4: =IF(ISNUMBER(SEARCH('UI Bahan Bakar'!$E$11,'List BBM'!L4)),MAX($K$1:K3,J4)+1,0) -> 3 | L4: LNG/CNG | N4: =IFERROR(VLOOKUP(ROWS($N$1:N3),$K$2:$L$52,2,FALSE),"") -> LNG/CNG
B5: =IF(ISNUMBER(SEARCH('UI Bahan Bakar'!$E$9,'List BBM'!C5)),MAX($B$1:B4,A5)+1,0) -> 4 | C5: Pertamax | E5: =IFERROR(VLOOKUP(ROWS($E$1:E4),$B$2:$C$19,2,FALSE),"") -> Pertamax | K5: =IF(ISNUMBER(SEARCH('UI Bahan Bakar'!$E$11,'List BBM'!L5)),MAX($K$1:K4,J5)+1,0) -> 4 | L5: Premium | N5: =IFERROR(VLOOKUP(ROWS($N$1:N4),$K$2:$L$52,2,FALSE),"") -> Premium
B6: =IF(ISNUMBER(SEARCH('UI Bahan Bakar'!$E$9,'List BBM'!C6)),MAX($B$1:B5,A6)+1,0) -> 5 | C6: Pertamax Plus/Turbo | E6: =IFERROR(VLOOKUP(ROWS($E$1:E5),$B$2:$C$19,2,FALSE),"") -> Pertamax Plus/Turbo | K6: =IF(ISNUMBER(SEARCH('UI Bahan Bakar'!$E$11,'List BBM'!L6)),MAX($K$1:K5,J6)+1,0) -> 5 | L6: Pertalite | N6: =IFERROR(VLOOKUP(ROWS($N$1:N5),$K$2:$L$52,2,FALSE),"") -> Pertalite
B7: =IF(ISNUMBER(SEARCH('UI Bahan Bakar'!$E$9,'List BBM'!C7)),MAX($B$1:B6,A7)+1,0) -> 6 | C7: Avgas | E7: =IFERROR(VLOOKUP(ROWS($E$1:E6),$B$2:$C$19,2,FALSE),"") -> Avgas | K7: =IF(ISNUMBER(SEARCH('UI Bahan Bakar'!$E$11,'List BBM'!L7)),MAX($K$1:K6,J7)+1,0) -> 6 | L7: Pertamax | N7: =IFERROR(VLOOKUP(ROWS($N$1:N6),$K$2:$L$52,2,FALSE),"") -> Pertamax
B8: =IF(ISNUMBER(SEARCH('UI Bahan Bakar'!$E$9,'List BBM'!C8)),MAX($B$1:B7,A8)+1,0) -> 7 | C8: Avtur | E8: =IFERROR(VLOOKUP(ROWS($E$1:E7),$B$2:$C$19,2,FALSE),"") -> Avtur | K8: =IF(ISNUMBER(SEARCH('UI Bahan Bakar'!$E$11,'List BBM'!L8)),MAX($K$1:K7,J8)+1,0) -> 7 | L8: Pertamax Plus/Turbo | N8: =IFERROR(VLOOKUP(ROWS($N$1:N7),$K$2:$L$52,2,FALSE),"") -> Pertamax Plus/Turbo
B9: =IF(ISNUMBER(SEARCH('UI Bahan Bakar'!$E$9,'List BBM'!C9)),MAX($B$1:B8,A9)+1,0) -> 8 | C9: Kerosin Jet | E9: =IFERROR(VLOOKUP(ROWS($E$1:E8),$B$2:$C$19,2,FALSE),"") -> Kerosin Jet | K9: =IF(ISNUMBER(SEARCH('UI Bahan Bakar'!$E$11,'List BBM'!L9)),MAX($K$1:K8,J9)+1,0) -> 8 | L9: Avgas | N9: =IFERROR(VLOOKUP(ROWS($N$1:N8),$K$2:$L$52,2,FALSE),"") -> Avgas
B10: =IF(ISNUMBER(SEARCH('UI Bahan Bakar'!$E$9,'List BBM'!C10)),MAX($B$1:B9,A10)+1,0) -> 9 | C10: Kerosin Lain | E10: =IFERROR(VLOOKUP(ROWS($E$1:E9),$B$2:$C$19,2,FALSE),"") -> Kerosin Lain | K10: =IF(ISNUMBER(SEARCH('UI Bahan Bakar'!$E$11,'List BBM'!L10)),MAX($K$1:K9,J10)+1,0) -> 9 | L10: Avtur | N10: =IFERROR(VLOOKUP(ROWS($N$1:N9),$K$2:$L$52,2,FALSE),"") -> Avtur
B11: =IF(ISNUMBER(SEARCH('UI Bahan Bakar'!$E$9,'List BBM'!C11)),MAX($B$1:B10,A11)+1,0) -> 10 | C11: Solar | E11: =IFERROR(VLOOKUP(ROWS($E$1:E10),$B$2:$C$19,2,FALSE),"") -> Solar | K11: =IF(ISNUMBER(SEARCH('UI Bahan Bakar'!$E$11,'List BBM'!L11)),MAX($K$1:K10,J11)+1,0) -> 10 | L11: Kerosin Jet | N11: =IFERROR(VLOOKUP(ROWS($N$1:N10),$K$2:$L$52,2,FALSE),"") -> Kerosin Jet
B12: =IF(ISNUMBER(SEARCH('UI Bahan Bakar'!$E$9,'List BBM'!C12)),MAX($B$1:B11,A12)+1,0) -> 11 | C12: Residu | E12: =IFERROR(VLOOKUP(ROWS($E$1:E11),$B$2:$C$19,2,FALSE),"") -> Residu | K12: =IF(ISNUMBER(SEARCH('UI Bahan Bakar'!$E$11,'List BBM'!L12)),MAX($K$1:K11,J12)+1,0) -> 11 | L12: Kerosin Lain | N12: =IFERROR(VLOOKUP(ROWS($N$1:N11),$K$2:$L$52,2,FALSE),"") -> Kerosin Lain
B13: =IF(ISNUMBER(SEARCH('UI Bahan Bakar'!$E$9,'List BBM'!C13)),MAX($B$1:B12,A13)+1,0) -> 12 | C13: LPG | E13: =IFERROR(VLOOKUP(ROWS($E$1:E12),$B$2:$C$19,2,FALSE),"") -> LPG | K13: =IF(ISNUMBER(SEARCH('UI Bahan Bakar'!$E$11,'List BBM'!L13)),MAX($K$1:K12,J13)+1,0) -> 12 | L13: Shale oil | N13: =IFERROR(VLOOKUP(ROWS($N$1:N12),$K$2:$L$52,2,FALSE),"") -> Shale oil
B14: =IF(ISNUMBER(SEARCH('UI Bahan Bakar'!$E$9,'List BBM'!C14)),MAX($B$1:B13,A14)+1,0) -> 13 | C14: Pelumas | E14: =IFERROR(VLOOKUP(ROWS($E$1:E13),$B$2:$C$19,2,FALSE),"") -> Pelumas | K14: =IF(ISNUMBER(SEARCH('UI Bahan Bakar'!$E$11,'List BBM'!L14)),MAX($K$1:K13,J14)+1,0) -> 13 | L14: Solar | N14: =IFERROR(VLOOKUP(ROWS($N$1:N13),$K$2:$L$52,2,FALSE),"") -> Solar
B15: =IF(ISNUMBER(SEARCH('UI Bahan Bakar'!$E$9,'List BBM'!C15)),MAX($B$1:B14,A15)+1,0) -> 14 | C15: Refinery gas | E15: =IFERROR(VLOOKUP(ROWS($E$1:E14),$B$2:$C$19,2,FALSE),"") -> Refinery gas | K15: =IF(ISNUMBER(SEARCH('UI Bahan Bakar'!$E$11,'List BBM'!L15)),MAX($K$1:K14,J15)+1,0) -> 14 | L15: Residu | N15: =IFERROR(VLOOKUP(ROWS($N$1:N14),$K$2:$L$52,2,FALSE),"") -> Residu
B16: =IF(ISNUMBER(SEARCH('UI Bahan Bakar'!$E$9,'List BBM'!C16)),MAX($B$1:B15,A16)+1,0) -> 15 | C16: Parafin | E16: =IFERROR(VLOOKUP(ROWS($E$1:E15),$B$2:$C$19,2,FALSE),"") -> Parafin | K16: =IF(ISNUMBER(SEARCH('UI Bahan Bakar'!$E$11,'List BBM'!L16)),MAX($K$1:K15,J16)+1,0) -> 15 | L16: LPG | N16: =IFERROR(VLOOKUP(ROWS($N$1:N15),$K$2:$L$52,2,FALSE),"") -> LPG
B17: =IF(ISNUMBER(SEARCH('UI Bahan Bakar'!$E$9,'List BBM'!C17)),MAX($B$1:B16,A17)+1,0) -> 16 | C17: Solvent | E17: =IFERROR(VLOOKUP(ROWS($E$1:E16),$B$2:$C$19,2,FALSE),"") -> Solvent | K17: =IF(ISNUMBER(SEARCH('UI Bahan Bakar'!$E$11,'List BBM'!L17)),MAX($K$1:K16,J17)+1,0) -> 16 | L17: Ethana | N17: =IFERROR(VLOOKUP(ROWS($N$1:N16),$K$2:$L$52,2,FALSE),"") -> Ethana
B18: =IF(ISNUMBER(SEARCH('UI Bahan Bakar'!$E$9,'List BBM'!C18)),MAX($B$1:B17,A18)+1,0) -> 17 | C18: Batubara Sub-bitumen | E18: =IFERROR(VLOOKUP(ROWS($E$1:E17),$B$2:$C$19,2,FALSE),"") -> Batubara Sub-bitumen | K18: =IF(ISNUMBER(SEARCH('UI Bahan Bakar'!$E$11,'List BBM'!L18)),MAX($K$1:K17,J18)+1,0) -> 17 | L18: Nafta | N18: =IFERROR(VLOOKUP(ROWS($N$1:N17),$K$2:$L$52,2,FALSE),"") -> Nafta
B19: =IF(ISNUMBER(SEARCH('UI Bahan Bakar'!$E$9,'List BBM'!C19)),MAX($B$1:B18,A19)+1,0) -> 18 | C19: Gas Alam | E19: =IFERROR(VLOOKUP(ROWS($E$1:E18),$B$2:$C$19,2,FALSE),"") -> Gas Alam | K19: =IF(ISNUMBER(SEARCH('UI Bahan Bakar'!$E$11,'List BBM'!L19)),MAX($K$1:K18,J19)+1,0) -> 18 | L19: Bitumen | N19: =IFERROR(VLOOKUP(ROWS($N$1:N18),$K$2:$L$52,2,FALSE),"") -> Bitumen
K20: =IF(ISNUMBER(SEARCH('UI Bahan Bakar'!$E$11,'List BBM'!L20)),MAX($K$1:K19,J20)+1,0) -> 19 | L20: Pelumas | N20: =IFERROR(VLOOKUP(ROWS($N$1:N19),$K$2:$L$52,2,FALSE),"") -> Pelumas
K21: =IF(ISNUMBER(SEARCH('UI Bahan Bakar'!$E$11,'List BBM'!L21)),MAX($K$1:K20,J21)+1,0) -> 20 | L21: Kokas | N21: =IFERROR(VLOOKUP(ROWS($N$1:N20),$K$2:$L$52,2,FALSE),"") -> Kokas
K22: =IF(ISNUMBER(SEARCH('UI Bahan Bakar'!$E$11,'List BBM'!L22)),MAX($K$1:K21,J22)+1,0) -> 21 | L22: Refinery feedstock | N22: =IFERROR(VLOOKUP(ROWS($N$1:N21),$K$2:$L$52,2,FALSE),"") -> Refinery feedstock
K23: =IF(ISNUMBER(SEARCH('UI Bahan Bakar'!$E$11,'List BBM'!L23)),MAX($K$1:K22,J23)+1,0) -> 22 | L23: Refinery gas | N23: =IFERROR(VLOOKUP(ROWS($N$1:N22),$K$2:$L$52,2,FALSE),"") -> Refinery gas
K24: =IF(ISNUMBER(SEARCH('UI Bahan Bakar'!$E$11,'List BBM'!L24)),MAX($K$1:K23,J24)+1,0) -> 23 | L24: Parafin | N24: =IFERROR(VLOOKUP(ROWS($N$1:N23),$K$2:$L$52,2,FALSE),"") -> Parafin
K25: =IF(ISNUMBER(SEARCH('UI Bahan Bakar'!$E$11,'List BBM'!L25)),MAX($K$1:K24,J25)+1,0) -> 24 | L25: Solvent | N25: =IFERROR(VLOOKUP(ROWS($N$1:N24),$K$2:$L$52,2,FALSE),"") -> Solvent
K26: =IF(ISNUMBER(SEARCH('UI Bahan Bakar'!$E$11,'List BBM'!L26)),MAX($K$1:K25,J26)+1,0) -> 25 | L26: Antrasit | N26: =IFERROR(VLOOKUP(ROWS($N$1:N25),$K$2:$L$52,2,FALSE),"") -> Antrasit
K27: =IF(ISNUMBER(SEARCH('UI Bahan Bakar'!$E$11,'List BBM'!L27)),MAX($K$1:K26,J27)+1,0) -> 26 | L27: Arang Kokas | N27: =IFERROR(VLOOKUP(ROWS($N$1:N26),$K$2:$L$52,2,FALSE),"") -> Arang Kokas
K28: =IF(ISNUMBER(SEARCH('UI Bahan Bakar'!$E$11,'List BBM'!L28)),MAX($K$1:K27,J28)+1,0) -> 27 | L28: Batubara Bitumen | N28: =IFERROR(VLOOKUP(ROWS($N$1:N27),$K$2:$L$52,2,FALSE),"") -> Batubara Bitumen
K29: =IF(ISNUMBER(SEARCH('UI Bahan Bakar'!$E$11,'List BBM'!L29)),MAX($K$1:K28,J29)+1,0) -> 28 | L29: Batubara Sub-bitumen | N29: =IFERROR(VLOOKUP(ROWS($N$1:N28),$K$2:$L$52,2,FALSE),"") -> Batubara Sub-bitumen
K30: =IF(ISNUMBER(SEARCH('UI Bahan Bakar'!$E$11,'List BBM'!L30)),MAX($K$1:K29,J30)+1,0) -> 29 | L30: Lignit | N30: =IFERROR(VLOOKUP(ROWS($N$1:N29),$K$2:$L$52,2,FALSE),"") -> Lignit
K31: =IF(ISNUMBER(SEARCH('UI Bahan Bakar'!$E$11,'List BBM'!L31)),MAX($K$1:K30,J31)+1,0) -> 30 | L31: Bubuk Tar | N31: =IFERROR(VLOOKUP(ROWS($N$1:N30),$K$2:$L$52,2,FALSE),"") -> Bubuk Tar
K32: =IF(ISNUMBER(SEARCH('UI Bahan Bakar'!$E$11,'List BBM'!L32)),MAX($K$1:K31,J32)+1,0) -> 31 | L32: Briket Batubara | N32: =IFERROR(VLOOKUP(ROWS($N$1:N31),$K$2:$L$52,2,FALSE),"") -> Briket Batubara
K33: =IF(ISNUMBER(SEARCH('UI Bahan Bakar'!$E$11,'List BBM'!L33)),MAX($K$1:K32,J33)+1,0) -> 32 | L33: Kokas Lignit | N33: =IFERROR(VLOOKUP(ROWS($N$1:N32),$K$2:$L$52,2,FALSE),"") -> Kokas Lignit
K34: =IF(ISNUMBER(SEARCH('UI Bahan Bakar'!$E$11,'List BBM'!L34)),MAX($K$1:K33,J34)+1,0) -> 33 | L34: Kokas Gas | N34: =IFERROR(VLOOKUP(ROWS($N$1:N33),$K$2:$L$52,2,FALSE),"") -> Kokas Gas
K35: =IF(ISNUMBER(SEARCH('UI Bahan Bakar'!$E$11,'List BBM'!L35)),MAX($K$1:K34,J35)+1,0) -> 34 | L35: Tar Batubara | N35: =IFERROR(VLOOKUP(ROWS($N$1:N34),$K$2:$L$52,2,FALSE),"") -> Tar Batubara
K36: =IF(ISNUMBER(SEARCH('UI Bahan Bakar'!$E$11,'List BBM'!L36)),MAX($K$1:K35,J36)+1,0) -> 35 | L36: Gas Works Gas | N36: =IFERROR(VLOOKUP(ROWS($N$1:N35),$K$2:$L$52,2,FALSE),"") -> Gas Works Gas
K37: =IF(ISNUMBER(SEARCH('UI Bahan Bakar'!$E$11,'List BBM'!L37)),MAX($K$1:K36,J37)+1,0) -> 36 | L37: Coke Oven Gas | N37: =IFERROR(VLOOKUP(ROWS($N$1:N36),$K$2:$L$52,2,FALSE),"") -> Coke Oven Gas
K38: =IF(ISNUMBER(SEARCH('UI Bahan Bakar'!$E$11,'List BBM'!L38)),MAX($K$1:K37,J38)+1,0) -> 37 | L38: Blast Furnace Gas | N38: =IFERROR(VLOOKUP(ROWS($N$1:N37),$K$2:$L$52,2,FALSE),"") -> Blast Furnace Gas
K39: =IF(ISNUMBER(SEARCH('UI Bahan Bakar'!$E$11,'List BBM'!L39)),MAX($K$1:K38,J39)+1,0) -> 38 | L39: Oxygen Steel Furnace Gas | N39: =IFERROR(VLOOKUP(ROWS($N$1:N38),$K$2:$L$52,2,FALSE),"") -> Oxygen Steel Furnace Gas
K40: =IF(ISNUMBER(SEARCH('UI Bahan Bakar'!$E$11,'List BBM'!L40)),MAX($K$1:K39,J40)+1,0) -> 39 | L40: Gas Alam | N40: =IFERROR(VLOOKUP(ROWS($N$1:N39),$K$2:$L$52,2,FALSE),"") -> Gas Alam
K41: =IF(ISNUMBER(SEARCH('UI Bahan Bakar'!$E$11,'List BBM'!L41)),MAX($K$1:K40,J41)+1,0) -> 40 | L41: Limbah Kota | N41: =IFERROR(VLOOKUP(ROWS($N$1:N40),$K$2:$L$52,2,FALSE),"") -> Limbah Kota
K42: =IF(ISNUMBER(SEARCH('UI Bahan Bakar'!$E$11,'List BBM'!L42)),MAX($K$1:K41,J42)+1,0) -> 41 | L42: Minyak Limbah | N42: =IFERROR(VLOOKUP(ROWS($N$1:N41),$K$2:$L$52,2,FALSE),"") -> Minyak Limbah
K43: =IF(ISNUMBER(SEARCH('UI Bahan Bakar'!$E$11,'List BBM'!L43)),MAX($K$1:K42,J43)+1,0) -> 42 | L43: Biodiesel | N43: =IFERROR(VLOOKUP(ROWS($N$1:N42),$K$2:$L$52,2,FALSE),"") -> Biodiesel
K44: =IF(ISNUMBER(SEARCH('UI Bahan Bakar'!$E$11,'List BBM'!L44)),MAX($K$1:K43,J44)+1,0) -> 43 | L44: Biogasoline | N44: =IFERROR(VLOOKUP(ROWS($N$1:N43),$K$2:$L$52,2,FALSE),"") -> Biogasoline
K45: =IF(ISNUMBER(SEARCH('UI Bahan Bakar'!$E$11,'List BBM'!L45)),MAX($K$1:K44,J45)+1,0) -> 44 | L45: Landfill Gas | N45: =IFERROR(VLOOKUP(ROWS($N$1:N44),$K$2:$L$52,2,FALSE),"") -> Landfill Gas
K46: =IF(ISNUMBER(SEARCH('UI Bahan Bakar'!$E$11,'List BBM'!L46)),MAX($K$1:K45,J46)+1,0) -> 45 | L46: Sludge Gas | N46: =IFERROR(VLOOKUP(ROWS($N$1:N45),$K$2:$L$52,2,FALSE),"") -> Sludge Gas
K47: =IF(ISNUMBER(SEARCH('UI Bahan Bakar'!$E$11,'List BBM'!L47)),MAX($K$1:K46,J47)+1,0) -> 46 | L47: Biogas Lainnya | N47: =IFERROR(VLOOKUP(ROWS($N$1:N46),$K$2:$L$52,2,FALSE),"") -> Biogas Lainnya
K48: =IF(ISNUMBER(SEARCH('UI Bahan Bakar'!$E$11,'List BBM'!L48)),MAX($K$1:K47,J48)+1,0) -> 47 | L48: Gambut
K49: =IF(ISNUMBER(SEARCH('UI Bahan Bakar'!$E$11,'List BBM'!L49)),MAX($K$1:K48,J49)+1,0) -> 48 | L49: Kayu/Limbah Kayu
K50: =IF(ISNUMBER(SEARCH('UI Bahan Bakar'!$E$11,'List BBM'!L50)),MAX($K$1:K49,J50)+1,0) -> 49 | L50: Arang Kayu
K51: =IF(ISNUMBER(SEARCH('UI Bahan Bakar'!$E$11,'List BBM'!L51)),MAX($K$1:K50,J51)+1,0) -> 50 | L51: Biomass padat lain
K52: =IF(ISNUMBER(SEARCH('UI Bahan Bakar'!$E$11,'List BBM'!L52)),MAX($K$1:K51,J52)+1,0) -> 51 | L52: Liquor Hitam
